Workbook

Sheet Accueil

Sheet Emploi du temps
B1: EMPLOI DU TEMPS | G1: DÉBUT DE L’EMPLOI DU TEMPS | H1: INTERVALLE TEMPOREL | I1: Liste des cours
G2: 07:00:00 | H2: 15 MIN
B3: HEURE | C3: LUNDI | D3: MARDI | E3: MERCREDI | F3: JEUDI | G3: VENDREDI | H3: SAMEDI | I3: DIMANCHE
B4: =Début -> 07:00:00 | C4: =IFERROR(INDEX(ListeCours[],MATCH(SUMPRODUCT((ListeCours[AGENDA]=EmploiDuTemps[[#Headers],[LUNDI]])*(ROUNDDOWN($B4,10)>=ROUNDDOWN(ListeCours[HEURE DE DÉBUT],10))*($B4<=ListeCours[HEURE DE FIN]),ListeCours[UNIQUE]),ListeCours[UNIQUE],0),2),0) -> 0 | D4: =IFERROR(INDEX(ListeCours[],MATCH(SUMPRODUCT((ListeCours[AGENDA]=EmploiDuTemps[[#Headers],[MARDI]])*(ROUNDDOWN($B4,10)>=ROUNDDOWN(ListeCours[HEURE DE DÉBUT],10))*($B4<=ListeCours[HEURE DE FIN]),ListeCours[UNIQUE]),ListeCours[UNIQUE],0),2),0) -> 0 | E4: =IFERROR(INDEX(ListeCours[],MATCH(SUMPRODUCT((ListeCours[AGENDA]=EmploiDuTemps[[#Headers],[MERCREDI]])*(ROUNDDOWN($B4,10)>=ROUNDDOWN(ListeCours[HEURE DE DÉBUT],10))*($B4<=ListeCours[HEURE DE FIN]),ListeCours[UNIQUE]),ListeCours[UNIQUE],0),2),0) -> 0 | F4: =IFERROR(INDEX(ListeCours[],MATCH(SUMPRODUCT((ListeCours[AGENDA]=EmploiDuTemps[[#Headers],[JEUDI]])*(ROUNDDOWN($B4,10)>=ROUNDDOWN(ListeCours[HEURE DE DÉBUT],10))*($B4<=ListeCours[HEURE DE FIN]),ListeCours[UNIQUE]),ListeCours[UNIQUE],0),2),0) -> 0 | G4: =IFERROR(INDEX(ListeCours[],MATCH(SUMPRODUCT((ListeCours[AGENDA]=EmploiDuTemps[[#Headers],[VENDREDI]])*(ROUNDDOWN($B4,10)>=ROUNDDOWN(ListeCours[HEURE DE DÉBUT],10))*($B4<=ListeCours[HEURE DE FIN]),ListeCours[UNIQUE]),ListeCours[UNIQUE],0),2),0) -> 0 | H4: =IFERROR(INDEX(ListeCours[],MATCH(SUMPRODUCT((ListeCours[AGENDA]=EmploiDuTemps[[#Headers],[SAMEDI]])*(ROUNDDOWN($B4,10)>=ROUNDDOWN(ListeCours[HEURE DE DÉBUT],10))*($B4<=ListeCours[HEURE DE FIN]),ListeCours[UNIQUE]),ListeCours[UNIQUE],0),2),0) -> 0 | I4: =IFERROR(INDEX(ListeCours[],MATCH(SUMPRODUCT((ListeCours[AGENDA]=EmploiDuTemps[[#Headers],[DIMANCHE]])*(ROUNDDOWN($B4,10)>=ROUNDDOWN(ListeCours[HEURE DE DÉBUT],10))*($B4<=ListeCours[HEURE DE FIN]),ListeCours[UNIQUE]),ListeCours[UNIQUE],0),2),0) -> 0
B5: =B4+Incrément -> 07:15:00 | C5: =IFERROR(INDEX(ListeCours[],MATCH(SUMPRODUCT((ListeCours[AGENDA]=EmploiDuTemps[[#Headers],[LUNDI]])*(ROUNDDOWN($B5,10)>=ROUNDDOWN(ListeCours[HEURE DE DÉBUT],10))*($B5<=ListeCours[HEURE DE FIN]),ListeCours[UNIQUE]),ListeCours[UNIQUE],0),2),0) -> 0 | D5: =IFERROR(INDEX(ListeCours[],MATCH(SUMPRODUCT((ListeCours[AGENDA]=EmploiDuTemps[[#Headers],[MARDI]])*(ROUNDDOWN($B5,10)>=ROUNDDOWN(ListeCours[HEURE DE DÉBUT],10))*($B5<=ListeCours[HEURE DE FIN]),ListeCours[UNIQUE]),ListeCours[UNIQUE],0),2),0) -> 0 | E5: =IFERROR(INDEX(ListeCours[],MATCH(SUMPRODUCT((ListeCours[AGENDA]=EmploiDuTemps[[#Headers],[MERCREDI]])*(ROUNDDOWN($B5,10)>=ROUNDDOWN(ListeCours[HEURE DE DÉBUT],10))*($B5<=ListeCours[HEURE DE FIN]),ListeCours[UNIQUE]),ListeCours[UNIQUE],0),2),0) -> 0 | F5: =IFERROR(INDEX(ListeCours[],MATCH(SUMPRODUCT((ListeCours[AGENDA]=EmploiDuTemps[[#Headers],[JEUDI]])*(ROUNDDOWN($B5,10)>=ROUNDDOWN(ListeCours[HEURE DE DÉBUT],10))*($B5<=ListeCours[HEURE DE FIN]),ListeCours[UNIQUE]),ListeCours[UNIQUE],0),2),0) -> 0 | G5: =IFERROR(INDEX(ListeCours[],MATCH(SUMPRODUCT((ListeCours[AGENDA]=EmploiDuTemps[[#Headers],[VENDREDI]])*(ROUNDDOWN($B5,10)>=ROUNDDOWN(ListeCours[HEURE DE DÉBUT],10))*($B5<=ListeCours[HEURE DE FIN]),ListeCours[UNIQUE]),ListeCours[UNIQUE],0),2),0) -> 0 | H5: =IFERROR(INDEX(ListeCours[],MATCH(SUMPRODUCT((ListeCours[AGENDA]=EmploiDuTemps[[#Headers],[SAMEDI]])*(ROUNDDOWN($B5,10)>=ROUNDDOWN(ListeCours[HEURE DE DÉBUT],10))*($B5<=ListeCours[HEURE DE FIN]),ListeCours[UNIQUE]),ListeCours[UNIQUE],0),2),0) -> 0 | I5: =IFERROR(INDEX(ListeCours[],MATCH(SUMPRODUCT((ListeCours[AGENDA]=EmploiDuTemps[[#Headers],[DIMANCHE]])*(ROUNDDOWN($B5,10)>=ROUNDDOWN(ListeCours[HEURE DE DÉBUT],10))*($B5<=ListeCours[HEURE DE FIN]),ListeCours[UNIQUE]),ListeCours[UNIQUE],0),2),0) -> 0
B6: 07:30:00 | C6: =IFERROR(INDEX(ListeCours[],MATCH(SUMPRODUCT((ListeCours[AGENDA]=EmploiDuTemps[[#Headers],[LUNDI]])*(ROUNDDOWN($B6,10)>=ROUNDDOWN(ListeCours[HEURE DE DÉBUT],10))*($B6<=ListeCours[HEURE DE FIN]),ListeCours[UNIQUE]),ListeCours[UNIQUE],0),2),0) -> 0 | D6: =IFERROR(INDEX(ListeCours[],MATCH(SUMPRODUCT((ListeCours[AGENDA]=EmploiDuTemps[[#Headers],[MARDI]])*(ROUNDDOWN($B6,10)>=ROUNDDOWN(ListeCours[HEURE DE DÉBUT],10))*($B6<=ListeCours[HEURE DE FIN]),ListeCours[UNIQUE]),ListeCours[UNIQUE],0),2),0) -> 0 | E6: =IFERROR(INDEX(ListeCours[],MATCH(SUMPRODUCT((ListeCours[AGENDA]=EmploiDuTemps[[#Headers],[MERCREDI]])*(ROUNDDOWN($B6,10)>=ROUNDDOWN(ListeCours[HEURE DE DÉBUT],10))*($B6<=ListeCours[HEURE DE FIN]),ListeCours[UNIQUE]),ListeCours[UNIQUE],0),2),0) -> 0 | F6: =IFERROR(INDEX(ListeCours[],MATCH(SUMPRODUCT((ListeCours[AGENDA]=EmploiDuTemps[[#Headers],[JEUDI]])*(ROUNDDOWN($B6,10)>=ROUNDDOWN(ListeCours[HEURE DE DÉBUT],10))*($B6<=ListeCours[HEURE DE FIN]),ListeCours[UNIQUE]),ListeCours[UNIQUE],0),2),0) -> 0 | G6: =IFERROR(INDEX(ListeCours[],MATCH(SUMPRODUCT((ListeCours[AGENDA]=EmploiDuTemps[[#Headers],[VENDREDI]])*(ROUNDDOWN($B6,10)>=ROUNDDOWN(ListeCours[HEURE DE DÉBUT],10))*($B6<=ListeCours[HEURE DE FIN]),ListeCours[UNIQUE]),ListeCours[UNIQUE],0),2),0) -> 0 | H6: =IFERROR(INDEX(ListeCours[],MATCH(SUMPRODUCT((ListeCours[AGENDA]=EmploiDuTemps[[#Headers],[SAMEDI]])*(ROUNDDOWN($B6,10)>=ROUNDDOWN(ListeCours[HEURE DE DÉBUT],10))*($B6<=ListeCours[HEURE DE FIN]),ListeCours[UNIQUE]),ListeCours[UNIQUE],0),2),0) -> 0 | I6: =IFERROR(INDEX(ListeCours[],MATCH(SUMPRODUCT((ListeCours[AGENDA]=EmploiDuTemps[[#Headers],[DIMANCHE]])*(ROUNDDOWN($B6,10)>=ROUNDDOWN(ListeCours[HEURE DE DÉBUT],10))*($B6<=ListeCours[HEURE DE FIN]),ListeCours[UNIQUE]),ListeCours[UNIQUE],0),2),0) -> 0
B7: 07:45:00 | C7: =IFERROR(INDEX(ListeCours[],MATCH(SUMPRODUCT((ListeCours[AGENDA]=EmploiDuTemps[[#Headers],[LUNDI]])*(ROUNDDOWN($B7,10)>=ROUNDDOWN(ListeCours[HEURE DE DÉBUT],10))*($B7<=ListeCours[HEURE DE FIN]),ListeCours[UNIQUE]),ListeCours[UNIQUE],0),2),0) -> 0 | D7: =IFERROR(INDEX(ListeCours[],MATCH(SUMPRODUCT((ListeCours[AGENDA]=EmploiDuTemps[[#Headers],[MARDI]])*(ROUNDDOWN($B7,10)>=ROUNDDOWN(ListeCours[HEURE DE DÉBUT],10))*($B7<=ListeCours[HEURE DE FIN]),ListeCours[UNIQUE]),ListeCours[UNIQUE],0),2),0) -> 0 | E7: =IFERROR(INDEX(ListeCours[],MATCH(SUMPRODUCT((ListeCours[AGENDA]=EmploiDuTemps[[#Headers],[MERCREDI]])*(ROUNDDOWN($B7,10)>=ROUNDDOWN(ListeCours[HEURE DE DÉBUT],10))*($B7<=ListeCours[HEURE DE FIN]),ListeCours[UNIQUE]),ListeCours[UNIQUE],0),2),0) -> 0 | F7: =IFERROR(INDEX(ListeCours[],MATCH(SUMPRODUCT((ListeCours[AGENDA]=EmploiDuTemps[[#Headers],[JEUDI]])*(ROUNDDOWN($B7,10)>=ROUNDDOWN(ListeCours[HEURE DE DÉBUT],10))*($B7<=ListeCours[HEURE DE FIN]),ListeCours[UNIQUE]),ListeCours[UNIQUE],0),2),0) -> 0 | G7: =IFERROR(INDEX(ListeCours[],MATCH(SUMPRODUCT((ListeCours[AGENDA]=EmploiDuTemps[[#Headers],[VENDREDI]])*(ROUNDDOWN($B7,10)>=ROUNDDOWN(ListeCours[HEURE DE DÉBUT],10))*($B7<=ListeCours[HEURE DE FIN]),ListeCours[UNIQUE]),ListeCours[UNIQUE],0),2),0) -> 0 | H7: =IFERROR(INDEX(ListeCours[],MATCH(SUMPRODUCT((ListeCours[AGENDA]=EmploiDuTemps[[#Headers],[SAMEDI]])*(ROUNDDOWN($B7,10)>=ROUNDDOWN(ListeCours[HEURE DE DÉBUT],10))*($B7<=ListeCours[HEURE DE FIN]),ListeCours[UNIQUE]),ListeCours[UNIQUE],0),2),0) -> 0 | I7: =IFERROR(INDEX(ListeCours[],MATCH(SUMPRODUCT((ListeCours[AGENDA]=EmploiDuTemps[[#Headers],[DIMANCHE]])*(ROUNDDOWN($B7,10)>=ROUNDDOWN(ListeCours[HEURE DE DÉBUT],10))*($B7<=ListeCours[HEURE DE FIN]),ListeCours[UNIQUE]),ListeCours[UNIQUE],0),2),0) -> 0
B8: 08:00:00 | C8: =IFERROR(INDEX(ListeCours[],MATCH(SUMPRODUCT((ListeCours[AGENDA]=EmploiDuTemps[[#Headers],[LUNDI]])*(ROUNDDOWN($B8,10)>=ROUNDDOWN(ListeCours[HEURE DE DÉBUT],10))*($B8<=ListeCours[HEURE DE FIN]),ListeCours[UNIQUE]),ListeCours[UNIQUE],0),2),0) -> 0 | D8: =IFERROR(INDEX(ListeCours[],MATCH(SUMPRODUCT((ListeCours[AGENDA]=EmploiDuTemps[[#Headers],[MARDI]])*(ROUNDDOWN($B8,10)>=ROUNDDOWN(ListeCours[HEURE DE DÉBUT],10))*($B8<=ListeCours[HEURE DE FIN]),ListeCours[UNIQUE]),ListeCours[UNIQUE],0),2),0) -> MTH-113 | E8: =IFERROR(INDEX(ListeCours[],MATCH(SUMPRODUCT((ListeCours[AGENDA]=EmploiDuTemps[[#Headers],[MERCREDI]])*(ROUNDDOWN($B8,10)>=ROUNDDOWN(ListeCours[HEURE DE DÉBUT],10))*($B8<=ListeCours[HEURE DE FIN]),ListeCours[UNIQUE]),ListeCours[UNIQUE],0),2),0) -> 0 | F8: =IFERROR(INDEX(ListeCours[],MATCH(SUMPRODUCT((ListeCours[AGENDA]=EmploiDuTemps[[#Headers],[JEUDI]])*(ROUNDDOWN($B8,10)>=ROUNDDOWN(ListeCours[HEURE DE DÉBUT],10))*($B8<=ListeCours[HEURE DE FIN]),ListeCours[UNIQUE]),ListeCours[UNIQUE],0),2),0) -> 0 | G8: =IFERROR(INDEX(ListeCours[],MATCH(SUMPRODUCT((ListeCours[AGENDA]=EmploiDuTemps[[#Headers],[VENDREDI]])*(ROUNDDOWN($B8,10)>=ROUNDDOWN(ListeCours[HEURE DE DÉBUT],10))*($B8<=ListeCours[HEURE DE FIN]),ListeCours[UNIQUE]),ListeCours[UNIQUE],0),2),0) -> 0 | H8: =IFERROR(INDEX(ListeCours[],MATCH(SUMPRODUCT((ListeCours[AGENDA]=EmploiDuTemps[[#Headers],[SAMEDI]])*(ROUNDDOWN($B8,10)>=ROUNDDOWN(ListeCours[HEURE DE DÉBUT],10))*($B8<=ListeCours[HEURE DE FIN]),ListeCours[UNIQUE]),ListeCours[UNIQUE],0),2),0) -> 0 | I8: =IFERROR(INDEX(ListeCours[],MATCH(SUMPRODUCT((ListeCours[AGENDA]=EmploiDuTemps[[#Headers],[DIMANCHE]])*(ROUNDDOWN($B8,10)>=ROUNDDOWN(ListeCours[HEURE DE DÉBUT],10))*($B8<=ListeCours[HEURE DE FIN]),ListeCours[UNIQUE]),ListeCours[UNIQUE],0),2),0) -> 0
B9: 08:15:00 | C9: =IFERROR(INDEX(ListeCours[],MATCH(SUMPRODUCT((ListeCours[AGENDA]=EmploiDuTemps[[#Headers],[LUNDI]])*(ROUNDDOWN($B9,10)>=ROUNDDOWN(ListeCours[HEURE DE DÉBUT],10))*($B9<=ListeCours[HEURE DE FIN]),ListeCours[UNIQUE]),ListeCours[UNIQUE],0),2),0) -> 0 | D9: =IFERROR(INDEX(ListeCours[],MATCH(SUMPRODUCT((ListeCours[AGENDA]=EmploiDuTemps[[#Headers],[MARDI]])*(ROUNDDOWN($B9,10)>=ROUNDDOWN(ListeCours[HEURE DE DÉBUT],10))*($B9<=ListeCours[HEURE DE FIN]),ListeCours[UNIQUE]),ListeCours[UNIQUE],0),2),0) -> MTH-113 | E9: =IFERROR(INDEX(ListeCours[],MATCH(SUMPRODUCT((ListeCours[AGENDA]=EmploiDuTemps[[#Headers],[MERCREDI]])*(ROUNDDOWN($B9,10)>=ROUNDDOWN(ListeCours[HEURE DE DÉBUT],10))*($B9<=ListeCours[HEURE DE FIN]),ListeCours[UNIQUE]),ListeCours[UNIQUE],0),2),0) -> 0 | F9: =IFERROR(INDEX(ListeCours[],MATCH(SUMPRODUCT((ListeCours[AGENDA]=EmploiDuTemps[[#Headers],[JEUDI]])*(ROUNDDOWN($B9,10)>=ROUNDDOWN(ListeCours[HEURE DE DÉBUT],10))*($B9<=ListeCours[HEURE DE FIN]),ListeCours[UNIQUE]),ListeCours[UNIQUE],0),2),0) -> 0 | G9: =IFERROR(INDEX(ListeCours[],MATCH(SUMPRODUCT((ListeCours[AGENDA]=EmploiDuTemps[[#Headers],[VENDREDI]])*(ROUNDDOWN($B9,10)>=ROUNDDOWN(ListeCours[HEURE DE DÉBUT],10))*($B9<=ListeCours[HEURE DE FIN]),ListeCours[UNIQUE]),ListeCours[UNIQUE],0),2),0) -> PHL-113 | H9: =IFERROR(INDEX(ListeCours[],MATCH(SUMPRODUCT((ListeCours[AGENDA]=EmploiDuTemps[[#Headers],[SAMEDI]])*(ROUNDDOWN($B9,10)>=ROUNDDOWN(ListeCours[HEURE DE DÉBUT],10))*($B9<=ListeCours[HEURE DE FIN]),ListeCours[UNIQUE]),ListeCours[UNIQUE],0),2),0) -> ALM-113 | I9: =IFERROR(INDEX(ListeCours[],MATCH(SUMPRODUCT((ListeCours[AGENDA]=EmploiDuTemps[[#Headers],[DIMANCHE]])*(ROUNDDOWN($B9,10)>=ROUNDDOWN(ListeCours[HEURE DE DÉBUT],10))*($B9<=ListeCours[HEURE DE FIN]),ListeCours[UNIQUE]),ListeCours[UNIQUE],0),2),0) -> 0
B10: 08:30:00 | C10: =IFERROR(INDEX(ListeCours[],MATCH(SUMPRODUCT((ListeCours[AGENDA]=EmploiDuTemps[[#Headers],[LUNDI]])*(ROUNDDOWN($B10,10)>=ROUNDDOWN(ListeCours[HEURE DE DÉBUT],10))*($B10<=ListeCours[HEURE DE FIN]),ListeCours[UNIQUE]),ListeCours[UNIQUE],0),2),0) -> 0 | D10: =IFERROR(INDEX(ListeCours[],MATCH(SUMPRODUCT((ListeCours[AGENDA]=EmploiDuTemps[[#Headers],[MARDI]])*(ROUNDDOWN($B10,10)>=ROUNDDOWN(ListeCours[HEURE DE DÉBUT],10))*($B10<=ListeCours[HEURE DE FIN]),ListeCours[UNIQUE]),ListeCours[UNIQUE],0),2),0) -> MTH-113 | E10: =IFERROR(INDEX(ListeCours[],MATCH(SUMPRODUCT((ListeCours[AGENDA]=EmploiDuTemps[[#Headers],[MERCREDI]])*(ROUNDDOWN($B10,10)>=ROUNDDOWN(ListeCours[HEURE DE DÉBUT],10))*($B10<=ListeCours[HEURE DE FIN]),ListeCours[UNIQUE]),ListeCours[UNIQUE],0),2),0) -> 0 | F10: =IFERROR(INDEX(ListeCours[],MATCH(SUMPRODUCT((ListeCours[AGENDA]=EmploiDuTemps[[#Headers],[JEUDI]])*(ROUNDDOWN($B10,10)>=ROUNDDOWN(ListeCours[HEURE DE DÉBUT],10))*($B10<=ListeCours[HEURE DE FIN]),ListeCours[UNIQUE]),ListeCours[UNIQUE],0),2),0) -> 0 | G10: =IFERROR(INDEX(ListeCours[],MATCH(SUMPRODUCT((ListeCours[AGENDA]=EmploiDuTemps[[#Headers],[VENDREDI]])*(ROUNDDOWN($B10,10)>=ROUNDDOWN(ListeCours[HEURE DE DÉBUT],10))*($B10<=ListeCours[HEURE DE FIN]),ListeCours[UNIQUE]),ListeCours[UNIQUE],0),2),0) -> PHL-113 | H10: =IFERROR(INDEX(ListeCours[],MATCH(SUMPRODUCT((ListeCours[AGENDA]=EmploiDuTemps[[#Headers],[SAMEDI]])*(ROUNDDOWN($B10,10)>=ROUNDDOWN(ListeCours[HEURE DE DÉBUT],10))*($B10<=ListeCours[HEURE DE FIN]),ListeCours[UNIQUE]),ListeCours[UNIQUE],0),2),0) -> ALM-113 | I10: =IFERROR(INDEX(ListeCours[],MATCH(SUMPRODUCT((ListeCours[AGENDA]=EmploiDuTemps[[#Headers],[DIMANCHE]])*(ROUNDDOWN($B10,10)>=ROUNDDOWN(ListeCours[HEURE DE DÉBUT],10))*($B10<=ListeCours[HEURE DE FIN]),ListeCours[UNIQUE]),ListeCours[UNIQUE],0),2),0) -> 0
B11: 08:45:00 | C11: =IFERROR(INDEX(ListeCours[],MATCH(SUMPRODUCT((ListeCours[AGENDA]=EmploiDuTemps[[#Headers],[LUNDI]])*(ROUNDDOWN($B11,10)>=ROUNDDOWN(ListeCours[HEURE DE DÉBUT],10))*($B11<=ListeCours[HEURE DE FIN]),ListeCours[UNIQUE]),ListeCours[UNIQUE],0),2),0) -> 0 | D11: =IFERROR(INDEX(ListeCours[],MATCH(SUMPRODUCT((ListeCours[AGENDA]=EmploiDuTemps[[#Headers],[MARDI]])*(ROUNDDOWN($B11,10)>=ROUNDDOWN(ListeCours[HEURE DE DÉBUT],10))*($B11<=ListeCours[HEURE DE FIN]),ListeCours[UNIQUE]),ListeCours[UNIQUE],0),2),0) -> MTH-113 | E11: =IFERROR(INDEX(ListeCours[],MATCH(SUMPRODUCT((ListeCours[AGENDA]=EmploiDuTemps[[#Headers],[MERCREDI]])*(ROUNDDOWN($B11,10)>=ROUNDDOWN(ListeCours[HEURE DE DÉBUT],10))*($B11<=ListeCours[HEURE DE FIN]),ListeCours[UNIQUE]),ListeCours[UNIQUE],0),2),0) -> 0 | F11: =IFERROR(INDEX(ListeCours[],MATCH(SUMPRODUCT((ListeCours[AGENDA]=EmploiDuTemps[[#Headers],[JEUDI]])*(ROUNDDOWN($B11,10)>=ROUNDDOWN(ListeCours[HEURE DE DÉBUT],10))*($B11<=ListeCours[HEURE DE FIN]),ListeCours[UNIQUE]),ListeCours[UNIQUE],0),2),0) -> 0 | G11: =IFERROR(INDEX(ListeCours[],MATCH(SUMPRODUCT((ListeCours[AGENDA]=EmploiDuTemps[[#Headers],[VENDREDI]])*(ROUNDDOWN($B11,10)>=ROUNDDOWN(ListeCours[HEURE DE DÉBUT],10))*($B11<=ListeCours[HEURE DE FIN]),ListeCours[UNIQUE]),ListeCours[UNIQUE],0),2),0) -> PHL-113 | H11: =IFERROR(INDEX(ListeCours[],MATCH(SUMPRODUCT((ListeCours[AGENDA]=EmploiDuTemps[[#Headers],[SAMEDI]])*(ROUNDDOWN($B11,10)>=ROUNDDOWN(ListeCours[HEURE DE DÉBUT],10))*($B11<=ListeCours[HEURE DE FIN]),ListeCours[UNIQUE]),ListeCours[UNIQUE],0),2),0) -> ALM-113 | I11: =IFERROR(INDEX(ListeCours[],MATCH(SUMPRODUCT((ListeCours[AGENDA]=EmploiDuTemps[[#Headers],[DIMANCHE]])*(ROUNDDOWN($B11,10)>=ROUNDDOWN(ListeCours[HEURE DE DÉBUT],10))*($B11<=ListeCours[HEURE DE FIN]),ListeCours[UNIQUE]),ListeCours[UNIQUE],0),2),0) -> 0
B12: 09:00:00 | C12: =IFERROR(INDEX(ListeCours[],MATCH(SUMPRODUCT((ListeCours[AGENDA]=EmploiDuTemps[[#Headers],[LUNDI]])*(ROUNDDOWN($B12,10)>=ROUNDDOWN(ListeCours[HEURE DE DÉBUT],10))*($B12<=ListeCours[HEURE DE FIN]),ListeCours[UNIQUE]),ListeCours[UNIQUE],0),2),0) -> 0 | D12: =IFERROR(INDEX(ListeCours[],MATCH(SUMPRODUCT((ListeCours[AGENDA]=EmploiDuTemps[[#Headers],[MARDI]])*(ROUNDDOWN($B12,10)>=ROUNDDOWN(ListeCours[HEURE DE DÉBUT],10))*($B12<=ListeCours[HEURE DE FIN]),ListeCours[UNIQUE]),ListeCours[UNIQUE],0),2),0) -> MTH-113 | E12: =IFERROR(INDEX(ListeCours[],MATCH(SUMPRODUCT((ListeCours[AGENDA]=EmploiDuTemps[[#Headers],[MERCREDI]])*(ROUNDDOWN($B12,10)>=ROUNDDOWN(ListeCours[HEURE DE DÉBUT],10))*($B12<=ListeCours[HEURE DE FIN]),ListeCours[UNIQUE]),ListeCours[UNIQUE],0),2),0) -> 0 | F12: =IFERROR(INDEX(ListeCours[],MATCH(SUMPRODUCT((ListeCours[AGENDA]=EmploiDuTemps[[#Headers],[JEUDI]])*(ROUNDDOWN($B12,10)>=ROUNDDOWN(ListeCours[HEURE DE DÉBUT],10))*($B12<=ListeCours[HEURE DE FIN]),ListeCours[UNIQUE]),ListeCours[UNIQUE],0),2),0) -> 0 | G12: =IFERROR(INDEX(ListeCours[],MATCH(SUMPRODUCT((ListeCours[AGENDA]=EmploiDuTemps[[#Headers],[VENDREDI]])*(ROUNDDOWN($B12,10)>=ROUNDDOWN(ListeCours[HEURE DE DÉBUT],10))*($B12<=ListeCours[HEURE DE FIN]),ListeCours[UNIQUE]),ListeCours[UNIQUE],0),2),0) -> PHL-113 | H12: =IFERROR(INDEX(ListeCours[],MATCH(SUMPRODUCT((ListeCours[AGENDA]=EmploiDuTemps[[#Headers],[SAMEDI]])*(ROUNDDOWN($B12,10)>=ROUNDDOWN(ListeCours[HEURE DE DÉBUT],10))*($B12<=ListeCours[HEURE DE FIN]),ListeCours[UNIQUE]),ListeCours[UNIQUE],0),2),0) -> ALM-113 | I12: =IFERROR(INDEX(ListeCours[],MATCH(SUMPRODUCT((ListeCours[AGENDA]=EmploiDuTemps[[#Headers],[DIMANCHE]])*(ROUNDDOWN($B12,10)>=ROUNDDOWN(ListeCours[HEURE DE DÉBUT],10))*($B12<=ListeCours[HEURE DE FIN]),ListeCours[UNIQUE]),ListeCours[UNIQUE],0),2),0) -> 0
B13: 09:15:00 | C13: =IFERROR(INDEX(ListeCours[],MATCH(SUMPRODUCT((ListeCours[AGENDA]=EmploiDuTemps[[#Headers],[LUNDI]])*(ROUNDDOWN($B13,10)>=ROUNDDOWN(ListeCours[HEURE DE DÉBUT],10))*($B13<=ListeCours[HEURE DE FIN]),ListeCours[UNIQUE]),ListeCours[UNIQUE],0),2),0) -> 0 | D13: =IFERROR(INDEX(ListeCours[],MATCH(SUMPRODUCT((ListeCours[AGENDA]=EmploiDuTemps[[#Headers],[MARDI]])*(ROUNDDOWN($B13,10)>=ROUNDDOWN(ListeCours[HEURE DE DÉBUT],10))*($B13<=ListeCours[HEURE DE FIN]),ListeCours[UNIQUE]),ListeCours[UNIQUE],0),2),0) -> MTH-113 | E13: =IFERROR(INDEX(ListeCours[],MATCH(SUMPRODUCT((ListeCours[AGENDA]=EmploiDuTemps[[#Headers],[MERCREDI]])*(ROUNDDOWN($B13,10)>=ROUNDDOWN(ListeCours[HEURE DE DÉBUT],10))*($B13<=ListeCours[HEURE DE FIN]),ListeCours[UNIQUE]),ListeCours[UNIQUE],0),2),0) -> 0 | F13: =IFERROR(INDEX(ListeCours[],MATCH(SUMPRODUCT((ListeCours[AGENDA]=EmploiDuTemps[[#Headers],[JEUDI]])*(ROUNDDOWN($B13,10)>=ROUNDDOWN(ListeCours[HEURE DE DÉBUT],10))*($B13<=ListeCours[HEURE DE FIN]),ListeCours[UNIQUE]),ListeCours[UNIQUE],0),2),0) -> 0 | G13: =IFERROR(INDEX(ListeCours[],MATCH(SUMPRODUCT((ListeCours[AGENDA]=EmploiDuTemps[[#Headers],[VENDREDI]])*(ROUNDDOWN($B13,10)>=ROUNDDOWN(ListeCours[HEURE DE DÉBUT],10))*($B13<=ListeCours[HEURE DE FIN]),ListeCours[UNIQUE]),ListeCours[UNIQUE],0),2),0) -> PHL-113 | H13: =IFERROR(INDEX(ListeCours[],MATCH(SUMPRODUCT((ListeCours[AGENDA]=EmploiDuTemps[[#Headers],[SAMEDI]])*(ROUNDDOWN($B13,10)>=ROUNDDOWN(ListeCours[HEURE DE DÉBUT],10))*($B13<=ListeCours[HEURE DE FIN]),ListeCours[UNIQUE]),ListeCours[UNIQUE],0),2),0) -> ALM-113 | I13: =IFERROR(INDEX(ListeCours[],MATCH(SUMPRODUCT((ListeCours[AGENDA]=EmploiDuTemps[[#Headers],[DIMANCHE]])*(ROUNDDOWN($B13,10)>=ROUNDDOWN(ListeCours[HEURE DE DÉBUT],10))*($B13<=ListeCours[HEURE DE FIN]),ListeCours[UNIQUE]),ListeCours[UNIQUE],0),2),0) -> 0
B14: 09:30:00 | C14: =IFERROR(INDEX(ListeCours[],MATCH(SUMPRODUCT((ListeCours[AGENDA]=EmploiDuTemps[[#Headers],[LUNDI]])*(ROUNDDOWN($B14,10)>=ROUNDDOWN(ListeCours[HEURE DE DÉBUT],10))*($B14<=ListeCours[HEURE DE FIN]),ListeCours[UNIQUE]),ListeCours[UNIQUE],0),2),0) -> 0 | D14: =IFERROR(INDEX(ListeCours[],MATCH(SUMPRODUCT((ListeCours[AGENDA]=EmploiDuTemps[[#Headers],[MARDI]])*(ROUNDDOWN($B14,10)>=ROUNDDOWN(ListeCours[HEURE DE DÉBUT],10))*($B14<=ListeCours[HEURE DE FIN]),ListeCours[UNIQUE]),ListeCours[UNIQUE],0),2),0) -> 0 | E14: =IFERROR(INDEX(ListeCours[],MATCH(SUMPRODUCT((ListeCours[AGENDA]=EmploiDuTemps[[#Headers],[MERCREDI]])*(ROUNDDOWN($B14,10)>=ROUNDDOWN(ListeCours[HEURE DE DÉBUT],10))*($B14<=ListeCours[HEURE DE FIN]),ListeCours[UNIQUE]),ListeCours[UNIQUE],0),2),0) -> 0 | F14: =IFERROR(INDEX(ListeCours[],MATCH(SUMPRODUCT((ListeCours[AGENDA]=EmploiDuTemps[[#Headers],[JEUDI]])*(ROUNDDOWN($B14,10)>=ROUNDDOWN(ListeCours[HEURE DE DÉBUT],10))*($B14<=ListeCours[HEURE DE FIN]),ListeCours[UNIQUE]),ListeCours[UNIQUE],0),2),0) -> 0 | G14: =IFERROR(INDEX(ListeCours[],MATCH(SUMPRODUCT((ListeCours[AGENDA]=EmploiDuTemps[[#Headers],[VENDREDI]])*(ROUNDDOWN($B14,10)>=ROUNDDOWN(ListeCours[HEURE DE DÉBUT],10))*($B14<=ListeCours[HEURE DE FIN]),ListeCours[UNIQUE]),ListeCours[UNIQUE],0),2),0) -> 0 | H14: =IFERROR(INDEX(ListeCours[],MATCH(SUMPRODUCT((ListeCours[AGENDA]=EmploiDuTemps[[#Headers],[SAMEDI]])*(ROUNDDOWN($B14,10)>=ROUNDDOWN(ListeCours[HEURE DE DÉBUT],10))*($B14<=ListeCours[HEURE DE FIN]),ListeCours[UNIQUE]),ListeCours[UNIQUE],0),2),0) -> 0 | I14: =IFERROR(INDEX(ListeCours[],MATCH(SUMPRODUCT((ListeCours[AGENDA]=EmploiDuTemps[[#Headers],[DIMANCHE]])*(ROUNDDOWN($B14,10)>=ROUNDDOWN(ListeCours[HEURE DE DÉBUT],10))*($B14<=ListeCours[HEURE DE FIN]),ListeCours[UNIQUE]),ListeCours[UNIQUE],0),2),0) -> 0
B15: 09:45:00 | C15: =IFERROR(INDEX(ListeCours[],MATCH(SUMPRODUCT((ListeCours[AGENDA]=EmploiDuTemps[[#Headers],[LUNDI]])*(ROUNDDOWN($B15,10)>=ROUNDDOWN(ListeCours[HEURE DE DÉBUT],10))*($B15<=ListeCours[HEURE DE FIN]),ListeCours[UNIQUE]),ListeCours[UNIQUE],0),2),0) -> 0 | D15: =IFERROR(INDEX(ListeCours[],MATCH(SUMPRODUCT((ListeCours[AGENDA]=EmploiDuTemps[[#Headers],[MARDI]])*(ROUNDDOWN($B15,10)>=ROUNDDOWN(ListeCours[HEURE DE DÉBUT],10))*($B15<=ListeCours[HEURE DE FIN]),ListeCours[UNIQUE]),ListeCours[UNIQUE],0),2),0) -> 0 | E15: =IFERROR(INDEX(ListeCours[],MATCH(SUMPRODUCT((ListeCours[AGENDA]=EmploiDuTemps[[#Headers],[MERCREDI]])*(ROUNDDOWN($B15,10)>=ROUNDDOWN(ListeCours[HEURE DE DÉBUT],10))*($B15<=ListeCours[HEURE DE FIN]),ListeCours[UNIQUE]),ListeCours[UNIQUE],0),2),0) -> 0 | F15: =IFERROR(INDEX(ListeCours[],MATCH(SUMPRODUCT((ListeCours[AGENDA]=EmploiDuTemps[[#Headers],[JEUDI]])*(ROUNDDOWN($B15,10)>=ROUNDDOWN(ListeCours[HEURE DE DÉBUT],10))*($B15<=ListeCours[HEURE DE FIN]),ListeCours[UNIQUE]),ListeCours[UNIQUE],0),2),0) -> 0 | G15: =IFERROR(INDEX(ListeCours[],MATCH(SUMPRODUCT((ListeCours[AGENDA]=EmploiDuTemps[[#Headers],[VENDREDI]])*(ROUNDDOWN($B15,10)>=ROUNDDOWN(ListeCours[HEURE DE DÉBUT],10))*($B15<=ListeCours[HEURE DE FIN]),ListeCours[UNIQUE]),ListeCours[UNIQUE],0),2),0) -> 0 | H15: =IFERROR(INDEX(ListeCours[],MATCH(SUMPRODUCT((ListeCours[AGENDA]=EmploiDuTemps[[#Headers],[SAMEDI]])*(ROUNDDOWN($B15,10)>=ROUNDDOWN(ListeCours[HEURE DE DÉBUT],10))*($B15<=ListeCours[HEURE DE FIN]),ListeCours[UNIQUE]),ListeCours[UNIQUE],0),2),0) -> 0 | I15: =IFERROR(INDEX(ListeCours[],MATCH(SUMPRODUCT((ListeCours[AGENDA]=EmploiDuTemps[[#Headers],[DIMANCHE]])*(ROUNDDOWN($B15,10)>=ROUNDDOWN(ListeCours[HEURE DE DÉBUT],10))*($B15<=ListeCours[HEURE DE FIN]),ListeCours[UNIQUE]),ListeCours[UNIQUE],0),2),0) -> 0
B16: 10:00:00 | C16: =IFERROR(INDEX(ListeCours[],MATCH(SUMPRODUCT((ListeCours[AGENDA]=EmploiDuTemps[[#Headers],[LUNDI]])*(ROUNDDOWN($B16,10)>=ROUNDDOWN(ListeCours[HEURE DE DÉBUT],10))*($B16<=ListeCours[HEURE DE FIN]),ListeCours[UNIQUE]),ListeCours[UNIQUE],0),2),0) -> 0 | D16: =IFERROR(INDEX(ListeCours[],MATCH(SUMPRODUCT((ListeCours[AGENDA]=EmploiDuTemps[[#Headers],[MARDI]])*(ROUNDDOWN($B16,10)>=ROUNDDOWN(ListeCours[HEURE DE DÉBUT],10))*($B16<=ListeCours[HEURE DE FIN]),ListeCours[UNIQUE]),ListeCours[UNIQUE],0),2),0) -> 0 | E16: =IFERROR(INDEX(ListeCours[],MATCH(SUMPRODUCT((ListeCours[AGENDA]=EmploiDuTemps[[#Headers],[MERCREDI]])*(ROUNDDOWN($B16,10)>=ROUNDDOWN(ListeCours[HEURE DE DÉBUT],10))*($B16<=ListeCours[HEURE DE FIN]),ListeCours[UNIQUE]),ListeCours[UNIQUE],0),2),0) -> 0 | F16: =IFERROR(INDEX(ListeCours[],MATCH(SUMPRODUCT((ListeCours[AGENDA]=EmploiDuTemps[[#Headers],[JEUDI]])*(ROUNDDOWN($B16,10)>=ROUNDDOWN(ListeCours[HEURE DE DÉBUT],10))*($B16<=ListeCours[HEURE DE FIN]),ListeCours[UNIQUE]),ListeCours[UNIQUE],0),2),0) -> 0 | G16: =IFERROR(INDEX(ListeCours[],MATCH(SUMPRODUCT((ListeCours[AGENDA]=EmploiDuTemps[[#Headers],[VENDREDI]])*(ROUNDDOWN($B16,10)>=ROUNDDOWN(ListeCours[HEURE DE DÉBUT],10))*($B16<=ListeCours[HEURE DE FIN]),ListeCours[UNIQUE]),ListeCours[UNIQUE],0),2),0) -> 0 | H16: =IFERROR(INDEX(ListeCours[],MATCH(SUMPRODUCT((ListeCours[AGENDA]=EmploiDuTemps[[#Headers],[SAMEDI]])*(ROUNDDOWN($B16,10)>=ROUNDDOWN(ListeCours[HEURE DE DÉBUT],10))*($B16<=ListeCours[HEURE DE FIN]),ListeCours[UNIQUE]),ListeCours[UNIQUE],0),2),0) -> 0 | I16: =IFERROR(INDEX(ListeCours[],MATCH(SUMPRODUCT((ListeCours[AGENDA]=EmploiDuTemps[[#Headers],[DIMANCHE]])*(ROUNDDOWN($B16,10)>=ROUNDDOWN(ListeCours[HEURE DE DÉBUT],10))*($B16<=ListeCours[HEURE DE FIN]),ListeCours[UNIQUE]),ListeCours[UNIQUE],0),2),0) -> 0
B17: 10:15:00 | C17: =IFERROR(INDEX(ListeCours[],MATCH(SUMPRODUCT((ListeCours[AGENDA]=EmploiDuTemps[[#Headers],[LUNDI]])*(ROUNDDOWN($B17,10)>=ROUNDDOWN(ListeCours[HEURE DE DÉBUT],10))*($B17<=ListeCours[HEURE DE FIN]),ListeCours[UNIQUE]),ListeCours[UNIQUE],0),2),0) -> 0 | D17: =IFERROR(INDEX(ListeCours[],MATCH(SUMPRODUCT((ListeCours[AGENDA]=EmploiDuTemps[[#Headers],[MARDI]])*(ROUNDDOWN($B17,10)>=ROUNDDOWN(ListeCours[HEURE DE DÉBUT],10))*($B17<=ListeCours[HEURE DE FIN]),ListeCours[UNIQUE]),ListeCours[UNIQUE],0),2),0) -> 0 | E17: =IFERROR(INDEX(ListeCours[],MATCH(SUMPRODUCT((ListeCours[AGENDA]=EmploiDuTemps[[#Headers],[MERCREDI]])*(ROUNDDOWN($B17,10)>=ROUNDDOWN(ListeCours[HEURE DE DÉBUT],10))*($B17<=ListeCours[HEURE DE FIN]),ListeCours[UNIQUE]),ListeCours[UNIQUE],0),2),0) -> 0 | F17: =IFERROR(INDEX(ListeCours[],MATCH(SUMPRODUCT((ListeCours[AGENDA]=EmploiDuTemps[[#Headers],[JEUDI]])*(ROUNDDOWN($B17,10)>=ROUNDDOWN(ListeCours[HEURE DE DÉBUT],10))*($B17<=ListeCours[HEURE DE FIN]),ListeCours[UNIQUE]),ListeCours[UNIQUE],0),2),0) -> 0 | G17: =IFERROR(INDEX(ListeCours[],MATCH(SUMPRODUCT((ListeCours[AGENDA]=EmploiDuTemps[[#Headers],[VENDREDI]])*(ROUNDDOWN($B17,10)>=ROUNDDOWN(ListeCours[HEURE DE DÉBUT],10))*($B17<=ListeCours[HEURE DE FIN]),ListeCours[UNIQUE]),ListeCours[UNIQUE],0),2),0) -> 0 | H17: =IFERROR(INDEX(ListeCours[],MATCH(SUMPRODUCT((ListeCours[AGENDA]=EmploiDuTemps[[#Headers],[SAMEDI]])*(ROUNDDOWN($B17,10)>=ROUNDDOWN(ListeCours[HEURE DE DÉBUT],10))*($B17<=ListeCours[HEURE DE FIN]),ListeCours[UNIQUE]),ListeCours[UNIQUE],0),2),0) -> 0 | I17: =IFERROR(INDEX(ListeCours[],MATCH(SUMPRODUCT((ListeCours[AGENDA]=EmploiDuTemps[[#Headers],[DIMANCHE]])*(ROUNDDOWN($B17,10)>=ROUNDDOWN(ListeCours[HEURE DE DÉBUT],10))*($B17<=ListeCours[HEURE DE FIN]),ListeCours[UNIQUE]),ListeCours[UNIQUE],0),2),0) -> ESP-001
B18: 10:30:00 | C18: =IFERROR(INDEX(ListeCours[],MATCH(SUMPRODUCT((ListeCours[AGENDA]=EmploiDuTemps[[#Headers],[LUNDI]])*(ROUNDDOWN($B18,10)>=ROUNDDOWN(ListeCours[HEURE DE DÉBUT],10))*($B18<=ListeCours[HEURE DE FIN]),ListeCours[UNIQUE]),ListeCours[UNIQUE],0),2),0) -> 0 | D18: =IFERROR(INDEX(ListeCours[],MATCH(SUMPRODUCT((ListeCours[AGENDA]=EmploiDuTemps[[#Headers],[MARDI]])*(ROUNDDOWN($B18,10)>=ROUNDDOWN(ListeCours[HEURE DE DÉBUT],10))*($B18<=ListeCours[HEURE DE FIN]),ListeCours[UNIQUE]),ListeCours[UNIQUE],0),2),0) -> 0 | E18: =IFERROR(INDEX(ListeCours[],MATCH(SUMPRODUCT((ListeCours[AGENDA]=EmploiDuTemps[[#Headers],[MERCREDI]])*(ROUNDDOWN($B18,10)>=ROUNDDOWN(ListeCours[HEURE DE DÉBUT],10))*($B18<=ListeCours[HEURE DE FIN]),ListeCours[UNIQUE]),ListeCours[UNIQUE],0),2),0) -> 0 | F18: =IFERROR(INDEX(ListeCours[],MATCH(SUMPRODUCT((ListeCours[AGENDA]=EmploiDuTemps[[#Headers],[JEUDI]])*(ROUNDDOWN($B18,10)>=ROUNDDOWN(ListeCours[HEURE DE DÉBUT],10))*($B18<=ListeCours[HEURE DE FIN]),ListeCours[UNIQUE]),ListeCours[UNIQUE],0),2),0) -> 0 | G18: =IFERROR(INDEX(ListeCours[],MATCH(SUMPRODUCT((ListeCours[AGENDA]=EmploiDuTemps[[#Headers],[VENDREDI]])*(ROUNDDOWN($B18,10)>=ROUNDDOWN(ListeCours[HEURE DE DÉBUT],10))*($B18<=ListeCours[HEURE DE FIN]),ListeCours[UNIQUE]),ListeCours[UNIQUE],0),2),0) -> 0 | H18: =IFERROR(INDEX(ListeCours[],MATCH(SUMPRODUCT((ListeCours[AGENDA]=EmploiDuTemps[[#Headers],[SAMEDI]])*(ROUNDDOWN($B18,10)>=ROUNDDOWN(ListeCours[HEURE DE DÉBUT],10))*($B18<=ListeCours[HEURE DE FIN]),ListeCours[UNIQUE]),ListeCours[UNIQUE],0),2),0) -> 0 | I18: =IFERROR(INDEX(ListeCours[],MATCH(SUMPRODUCT((ListeCours[AGENDA]=EmploiDuTemps[[#Headers],[DIMANCHE]])*(ROUNDDOWN($B18,10)>=ROUNDDOWN(ListeCours[HEURE DE DÉBUT],10))*($B18<=ListeCours[HEURE DE FIN]),ListeCours[UNIQUE]),ListeCours[UNIQUE],0),2),0) -> ESP-001
B19: 10:45:00 | C19: =IFERROR(INDEX(ListeCours[],MATCH(SUMPRODUCT((ListeCours[AGENDA]=EmploiDuTemps[[#Headers],[LUNDI]])*(ROUNDDOWN($B19,10)>=ROUNDDOWN(ListeCours[HEURE DE DÉBUT],10))*($B19<=ListeCours[HEURE DE FIN]),ListeCours[UNIQUE]),ListeCours[UNIQUE],0),2),0) -> 0 | D19: =IFERROR(INDEX(ListeCours[],MATCH(SUMPRODUCT((ListeCours[AGENDA]=EmploiDuTemps[[#Headers],[MARDI]])*(ROUNDDOWN($B19,10)>=ROUNDDOWN(ListeCours[HEURE DE DÉBUT],10))*($B19<=ListeCours[HEURE DE FIN]),ListeCours[UNIQUE]),ListeCours[UNIQUE],0),2),0) -> 0 | E19: =IFERROR(INDEX(ListeCours[],MATCH(SUMPRODUCT((ListeCours[AGENDA]=EmploiDuTemps[[#Headers],[MERCREDI]])*(ROUNDDOWN($B19,10)>=ROUNDDOWN(ListeCours[HEURE DE DÉBUT],10))*($B19<=ListeCours[HEURE DE FIN]),ListeCours[UNIQUE]),ListeCours[UNIQUE],0),2),0) -> 0 | F19: =IFERROR(INDEX(ListeCours[],MATCH(SUMPRODUCT((ListeCours[AGENDA]=EmploiDuTemps[[#Headers],[JEUDI]])*(ROUNDDOWN($B19,10)>=ROUNDDOWN(ListeCours[HEURE DE DÉBUT],10))*($B19<=ListeCours[HEURE DE FIN]),ListeCours[UNIQUE]),ListeCours[UNIQUE],0),2),0) -> 0 | G19: =IFERROR(INDEX(ListeCours[],MATCH(SUMPRODUCT((ListeCours[AGENDA]=EmploiDuTemps[[#Headers],[VENDREDI]])*(ROUNDDOWN($B19,10)>=ROUNDDOWN(ListeCours[HEURE DE DÉBUT],10))*($B19<=ListeCours[HEURE DE FIN]),ListeCours[UNIQUE]),ListeCours[UNIQUE],0),2),0) -> 0 | H19: =IFERROR(INDEX(ListeCours[],MATCH(SUMPRODUCT((ListeCours[AGENDA]=EmploiDuTemps[[#Headers],[SAMEDI]])*(ROUNDDOWN($B19,10)>=ROUNDDOWN(ListeCours[HEURE DE DÉBUT],10))*($B19<=ListeCours[HEURE DE FIN]),ListeCours[UNIQUE]),ListeCours[UNIQUE],0),2),0) -> 0 | I19: =IFERROR(INDEX(ListeCours[],MATCH(SUMPRODUCT((ListeCours[AGENDA]=EmploiDuTemps[[#Headers],[DIMANCHE]])*(ROUNDDOWN($B19,10)>=ROUNDDOWN(ListeCours[HEURE DE DÉBUT],10))*($B19<=ListeCours[HEURE DE FIN]),ListeCours[UNIQUE]),ListeCours[UNIQUE],0),2),0) -> ESP-001
B20: 11:00:00 | C20: =IFERROR(INDEX(ListeCours[],MATCH(SUMPRODUCT((ListeCours[AGENDA]=EmploiDuTemps[[#Headers],[LUNDI]])*(ROUNDDOWN($B20,10)>=ROUNDDOWN(ListeCours[HEURE DE DÉBUT],10))*($B20<=ListeCours[HEURE DE FIN]),ListeCours[UNIQUE]),ListeCours[UNIQUE],0),2),0) -> 0 | D20: =IFERROR(INDEX(ListeCours[],MATCH(SUMPRODUCT((ListeCours[AGENDA]=EmploiDuTemps[[#Headers],[MARDI]])*(ROUNDDOWN($B20,10)>=ROUNDDOWN(ListeCours[HEURE DE DÉBUT],10))*($B20<=ListeCours[HEURE DE FIN]),ListeCours[UNIQUE]),ListeCours[UNIQUE],0),2),0) -> SVT-295 | E20: =IFERROR(INDEX(ListeCours[],MATCH(SUMPRODUCT((ListeCours[AGENDA]=EmploiDuTemps[[#Headers],[MERCREDI]])*(ROUNDDOWN($B20,10)>=ROUNDDOWN(ListeCours[HEURE DE DÉBUT],10))*($B20<=ListeCours[HEURE DE FIN]),ListeCours[UNIQUE]),ListeCours[UNIQUE],0),2),0) -> PC-295 | F20: =IFERROR(INDEX(ListeCours[],MATCH(SUMPRODUCT((ListeCours[AGENDA]=EmploiDuTemps[[#Headers],[JEUDI]])*(ROUNDDOWN($B20,10)>=ROUNDDOWN(ListeCours[HEURE DE DÉBUT],10))*($B20<=ListeCours[HEURE DE FIN]),ListeCours[UNIQUE]),ListeCours[UNIQUE],0),2),0) -> 0 | G20: =IFERROR(INDEX(ListeCours[],MATCH(SUMPRODUCT((ListeCours[AGENDA]=EmploiDuTemps[[#Headers],[VENDREDI]])*(ROUNDDOWN($B20,10)>=ROUNDDOWN(ListeCours[HEURE DE DÉBUT],10))*($B20<=ListeCours[HEURE DE FIN]),ListeCours[UNIQUE]),ListeCours[UNIQUE],0),2),0) -> 0 | H20: =IFERROR(INDEX(ListeCours[],MATCH(SUMPRODUCT((ListeCours[AGENDA]=EmploiDuTemps[[#Headers],[SAMEDI]])*(ROUNDDOWN($B20,10)>=ROUNDDOWN(ListeCours[HEURE DE DÉBUT],10))*($B20<=ListeCours[HEURE DE FIN]),ListeCours[UNIQUE]),ListeCours[UNIQUE],0),2),0) -> 0 | I20: =IFERROR(INDEX(ListeCours[],MATCH(SUMPRODUCT((ListeCours[AGENDA]=EmploiDuTemps[[#Headers],[DIMANCHE]])*(ROUNDDOWN($B20,10)>=ROUNDDOWN(ListeCours[HEURE DE DÉBUT],10))*($B20<=ListeCours[HEURE DE FIN]),ListeCours[UNIQUE]),ListeCours[UNIQUE],0),2),0) -> ESP-001
B21: 11:15:00 | C21: =IFERROR(INDEX(ListeCours[],MATCH(SUMPRODUCT((ListeCours[AGENDA]=EmploiDuTemps[[#Headers],[LUNDI]])*(ROUNDDOWN($B21,10)>=ROUNDDOWN(ListeCours[HEURE DE DÉBUT],10))*($B21<=ListeCours[HEURE DE FIN]),ListeCours[UNIQUE]),ListeCours[UNIQUE],0),2),0) -> 0 | D21: =IFERROR(INDEX(ListeCours[],MATCH(SUMPRODUCT((ListeCours[AGENDA]=EmploiDuTemps[[#Headers],[MARDI]])*(ROUNDDOWN($B21,10)>=ROUNDDOWN(ListeCours[HEURE DE DÉBUT],10))*($B21<=ListeCours[HEURE DE FIN]),ListeCours[UNIQUE]),ListeCours[UNIQUE],0),2),0) -> SVT-295 | E21: =IFERROR(INDEX(ListeCours[],MATCH(SUMPRODUCT((ListeCours[AGENDA]=EmploiDuTemps[[#Headers],[MERCREDI]])*(ROUNDDOWN($B21,10)>=ROUNDDOWN(ListeCours[HEURE DE DÉBUT],10))*($B21<=ListeCours[HEURE DE FIN]),ListeCours[UNIQUE]),ListeCours[UNIQUE],0),2),0) -> PC-295 | F21: =IFERROR(INDEX(ListeCours[],MATCH(SUMPRODUCT((ListeCours[AGENDA]=EmploiDuTemps[[#Headers],[JEUDI]])*(ROUNDDOWN($B21,10)>=ROUNDDOWN(ListeCours[HEURE DE DÉBUT],10))*($B21<=ListeCours[HEURE DE FIN]),ListeCours[UNIQUE]),ListeCours[UNIQUE],0),2),0) -> 0 | G21: =IFERROR(INDEX(ListeCours[],MATCH(SUMPRODUCT((ListeCours[AGENDA]=EmploiDuTemps[[#Headers],[VENDREDI]])*(ROUNDDOWN($B21,10)>=ROUNDDOWN(ListeCours[HEURE DE DÉBUT],10))*($B21<=ListeCours[HEURE DE FIN]),ListeCours[UNIQUE]),ListeCours[UNIQUE],0),2),0) -> 0 | H21: =IFERROR(INDEX(ListeCours[],MATCH(SUMPRODUCT((ListeCours[AGENDA]=EmploiDuTemps[[#Headers],[SAMEDI]])*(ROUNDDOWN($B21,10)>=ROUNDDOWN(ListeCours[HEURE DE DÉBUT],10))*($B21<=ListeCours[HEURE DE FIN]),ListeCours[UNIQUE]),ListeCours[UNIQUE],0),2),0) -> 0 | I21: =IFERROR(INDEX(ListeCours[],MATCH(SUMPRODUCT((ListeCours[AGENDA]=EmploiDuTemps[[#Headers],[DIMANCHE]])*(ROUNDDOWN($B21,10)>=ROUNDDOWN(ListeCours[HEURE DE DÉBUT],10))*($B21<=ListeCours[HEURE DE FIN]),ListeCours[UNIQUE]),ListeCours[UNIQUE],0),2),0) -> ESP-001
B22: 11:30:00 | C22: =IFERROR(INDEX(ListeCours[],MATCH(SUMPRODUCT((ListeCours[AGENDA]=EmploiDuTemps[[#Headers],[LUNDI]])*(ROUNDDOWN($B22,10)>=ROUNDDOWN(ListeCours[HEURE DE DÉBUT],10))*($B22<=ListeCours[HEURE DE FIN]),ListeCours[UNIQUE]),ListeCours[UNIQUE],0),2),0) -> 0 | D22: =IFERROR(INDEX(ListeCours[],MATCH(SUMPRODUCT((ListeCours[AGENDA]=EmploiDuTemps[[#Headers],[MARDI]])*(ROUNDDOWN($B22,10)>=ROUNDDOWN(ListeCours[HEURE DE DÉBUT],10))*($B22<=ListeCours[HEURE DE FIN]),ListeCours[UNIQUE]),ListeCours[UNIQUE],0),2),0) -> SVT-295 | E22: =IFERROR(INDEX(ListeCours[],MATCH(SUMPRODUCT((ListeCours[AGENDA]=EmploiDuTemps[[#Headers],[MERCREDI]])*(ROUNDDOWN($B22,10)>=ROUNDDOWN(ListeCours[HEURE DE DÉBUT],10))*($B22<=ListeCours[HEURE DE FIN]),ListeCours[UNIQUE]),ListeCours[UNIQUE],0),2),0) -> PC-295 | F22: =IFERROR(INDEX(ListeCours[],MATCH(SUMPRODUCT((ListeCours[AGENDA]=EmploiDuTemps[[#Headers],[JEUDI]])*(ROUNDDOWN($B22,10)>=ROUNDDOWN(ListeCours[HEURE DE DÉBUT],10))*($B22<=ListeCours[HEURE DE FIN]),ListeCours[UNIQUE]),ListeCours[UNIQUE],0),2),0) -> 0 | G22: =IFERROR(INDEX(ListeCours[],MATCH(SUMPRODUCT((ListeCours[AGENDA]=EmploiDuTemps[[#Headers],[VENDREDI]])*(ROUNDDOWN($B22,10)>=ROUNDDOWN(ListeCours[HEURE DE DÉBUT],10))*($B22<=ListeCours[HEURE DE FIN]),ListeCours[UNIQUE]),ListeCours[UNIQUE],0),2),0) -> 0 | H22: =IFERROR(INDEX(ListeCours[],MATCH(SUMPRODUCT((ListeCours[AGENDA]=EmploiDuTemps[[#Headers],[SAMEDI]])*(ROUNDDOWN($B22,10)>=ROUNDDOWN(ListeCours[HEURE DE DÉBUT],10))*($B22<=ListeCours[HEURE DE FIN]),ListeCours[UNIQUE]),ListeCours[UNIQUE],0),2),0) -> 0 | I22: =IFERROR(INDEX(ListeCours[],MATCH(SUMPRODUCT((ListeCours[AGENDA]=EmploiDuTemps[[#Headers],[DIMANCHE]])*(ROUNDDOWN($B22,10)>=ROUNDDOWN(ListeCours[HEURE DE DÉBUT],10))*($B22<=ListeCours[HEURE DE FIN]),ListeCours[UNIQUE]),ListeCours[UNIQUE],0),2),0) -> ESP-001
B23: 11:45:00 | C23: =IFERROR(INDEX(ListeCours[],MATCH(SUMPRODUCT((ListeCours[AGENDA]=EmploiDuTemps[[#Headers],[LUNDI]])*(ROUNDDOWN($B23,10)>=ROUNDDOWN(ListeCours[HEURE DE DÉBUT],10))*($B23<=ListeCours[HEURE DE FIN]),ListeCours[UNIQUE]),ListeCours[UNIQUE],0),2),0) -> 0 | D23: =IFERROR(INDEX(ListeCours[],MATCH(SUMPRODUCT((ListeCours[AGENDA]=EmploiDuTemps[[#Headers],[MARDI]])*(ROUNDDOWN($B23,10)>=ROUNDDOWN(ListeCours[HEURE DE DÉBUT],10))*($B23<=ListeCours[HEURE DE FIN]),ListeCours[UNIQUE]),ListeCours[UNIQUE],0),2),0) -> SVT-295 | E23: =IFERROR(INDEX(ListeCours[],MATCH(SUMPRODUCT((ListeCours[AGENDA]=EmploiDuTemps[[#Headers],[MERCREDI]])*(ROUNDDOWN($B23,10)>=ROUNDDOWN(ListeCours[HEURE DE DÉBUT],10))*($B23<=ListeCours[HEURE DE FIN]),ListeCours[UNIQUE]),ListeCours[UNIQUE],0),2),0) -> PC-295 | F23: =IFERROR(INDEX(ListeCours[],MATCH(SUMPRODUCT((ListeCours[AGENDA]=EmploiDuTemps[[#Headers],[JEUDI]])*(ROUNDDOWN($B23,10)>=ROUNDDOWN(ListeCours[HEURE DE DÉBUT],10))*($B23<=ListeCours[HEURE DE FIN]),ListeCours[UNIQUE]),ListeCours[UNIQUE],0),2),0) -> 0 | G23: =IFERROR(INDEX(ListeCours[],MATCH(SUMPRODUCT((ListeCours[AGENDA]=EmploiDuTemps[[#Headers],[VENDREDI]])*(ROUNDDOWN($B23,10)>=ROUNDDOWN(ListeCours[HEURE DE DÉBUT],10))*($B23<=ListeCours[HEURE DE FIN]),ListeCours[UNIQUE]),ListeCours[UNIQUE],0),2),0) -> 0 | H23: =IFERROR(INDEX(ListeCours[],MATCH(SUMPRODUCT((ListeCours[AGENDA]=EmploiDuTemps[[#Headers],[SAMEDI]])*(ROUNDDOWN($B23,10)>=ROUNDDOWN(ListeCours[HEURE DE DÉBUT],10))*($B23<=ListeCours[HEURE DE FIN]),ListeCours[UNIQUE]),ListeCours[UNIQUE],0),2),0) -> 0 | I23: =IFERROR(INDEX(ListeCours[],MATCH(SUMPRODUCT((ListeCours[AGENDA]=EmploiDuTemps[[#Headers],[DIMANCHE]])*(ROUNDDOWN($B23,10)>=ROUNDDOWN(ListeCours[HEURE DE DÉBUT],10))*($B23<=ListeCours[HEURE DE FIN]),ListeCours[UNIQUE]),ListeCours[UNIQUE],0),2),0) -> ESP-001
B24: 12:00:00 | C24: =IFERROR(INDEX(ListeCours[],MATCH(SUMPRODUCT((ListeCours[AGENDA]=EmploiDuTemps[[#Headers],[LUNDI]])*(ROUNDDOWN($B24,10)>=ROUNDDOWN(ListeCours[HEURE DE DÉBUT],10))*($B24<=ListeCours[HEURE DE FIN]),ListeCours[UNIQUE]),ListeCours[UNIQUE],0),2),0) -> 0 | D24: =IFERROR(INDEX(ListeCours[],MATCH(SUMPRODUCT((ListeCours[AGENDA]=EmploiDuTemps[[#Headers],[MARDI]])*(ROUNDDOWN($B24,10)>=ROUNDDOWN(ListeCours[HEURE DE DÉBUT],10))*($B24<=ListeCours[HEURE DE FIN]),ListeCours[UNIQUE]),ListeCours[UNIQUE],0),2),0) -> SVT-295 | E24: =IFERROR(INDEX(ListeCours[],MATCH(SUMPRODUCT((ListeCours[AGENDA]=EmploiDuTemps[[#Headers],[MERCREDI]])*(ROUNDDOWN($B24,10)>=ROUNDDOWN(ListeCours[HEURE DE DÉBUT],10))*($B24<=ListeCours[HEURE DE FIN]),ListeCours[UNIQUE]),ListeCours[UNIQUE],0),2),0) -> PC-295 | F24: =IFERROR(INDEX(ListeCours[],MATCH(SUMPRODUCT((ListeCours[AGENDA]=EmploiDuTemps[[#Headers],[JEUDI]])*(ROUNDDOWN($B24,10)>=ROUNDDOWN(ListeCours[HEURE DE DÉBUT],10))*($B24<=ListeCours[HEURE DE FIN]),ListeCours[UNIQUE]),ListeCours[UNIQUE],0),2),0) -> 0 | G24: =IFERROR(INDEX(ListeCours[],MATCH(SUMPRODUCT((ListeCours[AGENDA]=EmploiDuTemps[[#Headers],[VENDREDI]])*(ROUNDDOWN($B24,10)>=ROUNDDOWN(ListeCours[HEURE DE DÉBUT],10))*($B24<=ListeCours[HEURE DE FIN]),ListeCours[UNIQUE]),ListeCours[UNIQUE],0),2),0) -> 0 | H24: =IFERROR(INDEX(ListeCours[],MATCH(SUMPRODUCT((ListeCours[AGENDA]=EmploiDuTemps[[#Headers],[SAMEDI]])*(ROUNDDOWN($B24,10)>=ROUNDDOWN(ListeCours[HEURE DE DÉBUT],10))*($B24<=ListeCours[HEURE DE FIN]),ListeCours[UNIQUE]),ListeCours[UNIQUE],0),2),0) -> 0 | I24: =IFERROR(INDEX(ListeCours[],MATCH(SUMPRODUCT((ListeCours[AGENDA]=EmploiDuTemps[[#Headers],[DIMANCHE]])*(ROUNDDOWN($B24,10)>=ROUNDDOWN(ListeCours[HEURE DE DÉBUT],10))*($B24<=ListeCours[HEURE DE FIN]),ListeCours[UNIQUE]),ListeCours[UNIQUE],0),2),0) -> ESP-001
B25: 12:15:00 | C25: =IFERROR(INDEX(ListeCours[],MATCH(SUMPRODUCT((ListeCours[AGENDA]=EmploiDuTemps[[#Headers],[LUNDI]])*(ROUNDDOWN($B25,10)>=ROUNDDOWN(ListeCours[HEURE DE DÉBUT],10))*($B25<=ListeCours[HEURE DE FIN]),ListeCours[UNIQUE]),ListeCours[UNIQUE],0),2),0) -> 0 | D25: =IFERROR(INDEX(ListeCours[],MATCH(SUMPRODUCT((ListeCours[AGENDA]=EmploiDuTemps[[#Headers],[MARDI]])*(ROUNDDOWN($B25,10)>=ROUNDDOWN(ListeCours[HEURE DE DÉBUT],10))*($B25<=ListeCours[HEURE DE FIN]),ListeCours[UNIQUE]),ListeCours[UNIQUE],0),2),0) -> 0 | E25: =IFERROR(INDEX(ListeCours[],MATCH(SUMPRODUCT((ListeCours[AGENDA]=EmploiDuTemps[[#Headers],[MERCREDI]])*(ROUNDDOWN($B25,10)>=ROUNDDOWN(ListeCours[HEURE DE DÉBUT],10))*($B25<=ListeCours[HEURE DE FIN]),ListeCours[UNIQUE]),ListeCours[UNIQUE],0),2),0) -> 0 | F25: =IFERROR(INDEX(ListeCours[],MATCH(SUMPRODUCT((ListeCours[AGENDA]=EmploiDuTemps[[#Headers],[JEUDI]])*(ROUNDDOWN($B25,10)>=ROUNDDOWN(ListeCours[HEURE DE DÉBUT],10))*($B25<=ListeCours[HEURE DE FIN]),ListeCours[UNIQUE]),ListeCours[UNIQUE],0),2),0) -> 0 | G25: =IFERROR(INDEX(ListeCours[],MATCH(SUMPRODUCT((ListeCours[AGENDA]=EmploiDuTemps[[#Headers],[VENDREDI]])*(ROUNDDOWN($B25,10)>=ROUNDDOWN(ListeCours[HEURE DE DÉBUT],10))*($B25<=ListeCours[HEURE DE FIN]),ListeCours[UNIQUE]),ListeCours[UNIQUE],0),2),0) -> 0 | H25: =IFERROR(INDEX(ListeCours[],MATCH(SUMPRODUCT((ListeCours[AGENDA]=EmploiDuTemps[[#Headers],[SAMEDI]])*(ROUNDDOWN($B25,10)>=ROUNDDOWN(ListeCours[HEURE DE DÉBUT],10))*($B25<=ListeCours[HEURE DE FIN]),ListeCours[UNIQUE]),ListeCours[UNIQUE],0),2),0) -> 0 | I25: =IFERROR(INDEX(ListeCours[],MATCH(SUMPRODUCT((ListeCours[AGENDA]=EmploiDuTemps[[#Headers],[DIMANCHE]])*(ROUNDDOWN($B25,10)>=ROUNDDOWN(ListeCours[HEURE DE DÉBUT],10))*($B25<=ListeCours[HEURE DE FIN]),ListeCours[UNIQUE]),ListeCours[UNIQUE],0),2),0) -> 0
B26: 12:30:00 | C26: =IFERROR(INDEX(ListeCours[],MATCH(SUMPRODUCT((ListeCours[AGENDA]=EmploiDuTemps[[#Headers],[LUNDI]])*(ROUNDDOWN($B26,10)>=ROUNDDOWN(ListeCours[HEURE DE DÉBUT],10))*($B26<=ListeCours[HEURE DE FIN]),ListeCours[UNIQUE]),ListeCours[UNIQUE],0),2),0) -> 0 | D26: =IFERROR(INDEX(ListeCours[],MATCH(SUMPRODUCT((ListeCours[AGENDA]=EmploiDuTemps[[#Headers],[MARDI]])*(ROUNDDOWN($B26,10)>=ROUNDDOWN(ListeCours[HEURE DE DÉBUT],10))*($B26<=ListeCours[HEURE DE FIN]),ListeCours[UNIQUE]),ListeCours[UNIQUE],0),2),0) -> 0 | E26: =IFERROR(INDEX(ListeCours[],MATCH(SUMPRODUCT((ListeCours[AGENDA]=EmploiDuTemps[[#Headers],[MERCREDI]])*(ROUNDDOWN($B26,10)>=ROUNDDOWN(ListeCours[HEURE DE DÉBUT],10))*($B26<=ListeCours[HEURE DE FIN]),ListeCours[UNIQUE]),ListeCours[UNIQUE],0),2),0) -> 0 | F26: =IFERROR(INDEX(ListeCours[],MATCH(SUMPRODUCT((ListeCours[AGENDA]=EmploiDuTemps[[#Headers],[JEUDI]])*(ROUNDDOWN($B26,10)>=ROUNDDOWN(ListeCours[HEURE DE DÉBUT],10))*($B26<=ListeCours[HEURE DE FIN]),ListeCours[UNIQUE]),ListeCours[UNIQUE],0),2),0) -> 0 | G26: =IFERROR(INDEX(ListeCours[],MATCH(SUMPRODUCT((ListeCours[AGENDA]=EmploiDuTemps[[#Headers],[VENDREDI]])*(ROUNDDOWN($B26,10)>=ROUNDDOWN(ListeCours[HEURE DE DÉBUT],10))*($B26<=ListeCours[HEURE DE FIN]),ListeCours[UNIQUE]),ListeCours[UNIQUE],0),2),0) -> 0 | H26: =IFERROR(INDEX(ListeCours[],MATCH(SUMPRODUCT((ListeCours[AGENDA]=EmploiDuTemps[[#Headers],[SAMEDI]])*(ROUNDDOWN($B26,10)>=ROUNDDOWN(ListeCours[HEURE DE DÉBUT],10))*($B26<=ListeCours[HEURE DE FIN]),ListeCours[UNIQUE]),ListeCours[UNIQUE],0),2),0) -> 0 | I26: =IFERROR(INDEX(ListeCours[],MATCH(SUMPRODUCT((ListeCours[AGENDA]=EmploiDuTemps[[#Headers],[DIMANCHE]])*(ROUNDDOWN($B26,10)>=ROUNDDOWN(ListeCours[HEURE DE DÉBUT],10))*($B26<=ListeCours[HEURE DE FIN]),ListeCours[UNIQUE]),ListeCours[UNIQUE],0),2),0) -> 0
B27: 12:45:00 | C27: =IFERROR(INDEX(ListeCours[],MATCH(SUMPRODUCT((ListeCours[AGENDA]=EmploiDuTemps[[#Headers],[LUNDI]])*(ROUNDDOWN($B27,10)>=ROUNDDOWN(ListeCours[HEURE DE DÉBUT],10))*($B27<=ListeCours[HEURE DE FIN]),ListeCours[UNIQUE]),ListeCours[UNIQUE],0),2),0) -> 0 | D27: =IFERROR(INDEX(ListeCours[],MATCH(SUMPRODUCT((ListeCours[AGENDA]=EmploiDuTemps[[#Headers],[MARDI]])*(ROUNDDOWN($B27,10)>=ROUNDDOWN(ListeCours[HEURE DE DÉBUT],10))*($B27<=ListeCours[HEURE DE FIN]),ListeCours[UNIQUE]),ListeCours[UNIQUE],0),2),0) -> 0 | E27: =IFERROR(INDEX(ListeCours[],MATCH(SUMPRODUCT((ListeCours[AGENDA]=EmploiDuTemps[[#Headers],[MERCREDI]])*(ROUNDDOWN($B27,10)>=ROUNDDOWN(ListeCours[HEURE DE DÉBUT],10))*($B27<=ListeCours[HEURE DE FIN]),ListeCours[UNIQUE]),ListeCours[UNIQUE],0),2),0) -> 0 | F27: =IFERROR(INDEX(ListeCours[],MATCH(SUMPRODUCT((ListeCours[AGENDA]=EmploiDuTemps[[#Headers],[JEUDI]])*(ROUNDDOWN($B27,10)>=ROUNDDOWN(ListeCours[HEURE DE DÉBUT],10))*($B27<=ListeCours[HEURE DE FIN]),ListeCours[UNIQUE]),ListeCours[UNIQUE],0),2),0) -> 0 | G27: =IFERROR(INDEX(ListeCours[],MATCH(SUMPRODUCT((ListeCours[AGENDA]=EmploiDuTemps[[#Headers],[VENDREDI]])*(ROUNDDOWN($B27,10)>=ROUNDDOWN(ListeCours[HEURE DE DÉBUT],10))*($B27<=ListeCours[HEURE DE FIN]),ListeCours[UNIQUE]),ListeCours[UNIQUE],0),2),0) -> 0 | H27: =IFERROR(INDEX(ListeCours[],MATCH(SUMPRODUCT((ListeCours[AGENDA]=EmploiDuTemps[[#Headers],[SAMEDI]])*(ROUNDDOWN($B27,10)>=ROUNDDOWN(ListeCours[HEURE DE DÉBUT],10))*($B27<=ListeCours[HEURE DE FIN]),ListeCours[UNIQUE]),ListeCours[UNIQUE],0),2),0) -> 0 | I27: =IFERROR(INDEX(ListeCours[],MATCH(SUMPRODUCT((ListeCours[AGENDA]=EmploiDuTemps[[#Headers],[DIMANCHE]])*(ROUNDDOWN($B27,10)>=ROUNDDOWN(ListeCours[HEURE DE DÉBUT],10))*($B27<=ListeCours[HEURE DE FIN]),ListeCours[UNIQUE]),ListeCours[UNIQUE],0),2),0) -> 0
B28: 13:00:00 | C28: =IFERROR(INDEX(ListeCours[],MATCH(SUMPRODUCT((ListeCours[AGENDA]=EmploiDuTemps[[#Headers],[LUNDI]])*(ROUNDDOWN($B28,10)>=ROUNDDOWN(ListeCours[HEURE DE DÉBUT],10))*($B28<=ListeCours[HEURE DE FIN]),ListeCours[UNIQUE]),ListeCours[UNIQUE],0),2),0) -> FR-121 | D28: =IFERROR(INDEX(ListeCours[],MATCH(SUMPRODUCT((ListeCours[AGENDA]=EmploiDuTemps[[#Headers],[MARDI]])*(ROUNDDOWN($B28,10)>=ROUNDDOWN(ListeCours[HEURE DE DÉBUT],10))*($B28<=ListeCours[HEURE DE FIN]),ListeCours[UNIQUE]),ListeCours[UNIQUE],0),2),0) -> 0 | E28: =IFERROR(INDEX(ListeCours[],MATCH(SUMPRODUCT((ListeCours[AGENDA]=EmploiDuTemps[[#Headers],[MERCREDI]])*(ROUNDDOWN($B28,10)>=ROUNDDOWN(ListeCours[HEURE DE DÉBUT],10))*($B28<=ListeCours[HEURE DE FIN]),ListeCours[UNIQUE]),ListeCours[UNIQUE],0),2),0) -> 0 | F28: =IFERROR(INDEX(ListeCours[],MATCH(SUMPRODUCT((ListeCours[AGENDA]=EmploiDuTemps[[#Headers],[JEUDI]])*(ROUNDDOWN($B28,10)>=ROUNDDOWN(ListeCours[HEURE DE DÉBUT],10))*($B28<=ListeCours[HEURE DE FIN]),ListeCours[UNIQUE]),ListeCours[UNIQUE],0),2),0) -> ANG-121 | G28: =IFERROR(INDEX(ListeCours[],MATCH(SUMPRODUCT((ListeCours[AGENDA]=EmploiDuTemps[[#Headers],[VENDREDI]])*(ROUNDDOWN($B28,10)>=ROUNDDOWN(ListeCours[HEURE DE DÉBUT],10))*($B28<=ListeCours[HEURE DE FIN]),ListeCours[UNIQUE]),ListeCours[UNIQUE],0),2),0) -> 0 | H28: =IFERROR(INDEX(ListeCours[],MATCH(SUMPRODUCT((ListeCours[AGENDA]=EmploiDuTemps[[#Headers],[SAMEDI]])*(ROUNDDOWN($B28,10)>=ROUNDDOWN(ListeCours[HEURE DE DÉBUT],10))*($B28<=ListeCours[HEURE DE FIN]),ListeCours[UNIQUE]),ListeCours[UNIQUE],0),2),0) -> 0 | I28: =IFERROR(INDEX(ListeCours[],MATCH(SUMPRODUCT((ListeCours[AGENDA]=EmploiDuTemps[[#Headers],[DIMANCHE]])*(ROUNDDOWN($B28,10)>=ROUNDDOWN(ListeCours[HEURE DE DÉBUT],10))*($B28<=ListeCours[HEURE DE FIN]),ListeCours[UNIQUE]),ListeCours[UNIQUE],0),2),0) -> 0
B29: 13:15:00 | C29: =IFERROR(INDEX(ListeCours[],MATCH(SUMPRODUCT((ListeCours[AGENDA]=EmploiDuTemps[[#Headers],[LUNDI]])*(ROUNDDOWN($B29,10)>=ROUNDDOWN(ListeCours[HEURE DE DÉBUT],10))*($B29<=ListeCours[HEURE DE FIN]),ListeCours[UNIQUE]),ListeCours[UNIQUE],0),2),0) -> FR-121 | D29: =IFERROR(INDEX(ListeCours[],MATCH(SUMPRODUCT((ListeCours[AGENDA]=EmploiDuTemps[[#Headers],[MARDI]])*(ROUNDDOWN($B29,10)>=ROUNDDOWN(ListeCours[HEURE DE DÉBUT],10))*($B29<=ListeCours[HEURE DE FIN]),ListeCours[UNIQUE]),ListeCours[UNIQUE],0),2),0) -> 0 | E29: =IFERROR(INDEX(ListeCours[],MATCH(SUMPRODUCT((ListeCours[AGENDA]=EmploiDuTemps[[#Headers],[MERCREDI]])*(ROUNDDOWN($B29,10)>=ROUNDDOWN(ListeCours[HEURE DE DÉBUT],10))*($B29<=ListeCours[HEURE DE FIN]),ListeCours[UNIQUE]),ListeCours[UNIQUE],0),2),0) -> 0 | F29: =IFERROR(INDEX(ListeCours[],MATCH(SUMPRODUCT((ListeCours[AGENDA]=EmploiDuTemps[[#Headers],[JEUDI]])*(ROUNDDOWN($B29,10)>=ROUNDDOWN(ListeCours[HEURE DE DÉBUT],10))*($B29<=ListeCours[HEURE DE FIN]),ListeCours[UNIQUE]),ListeCours[UNIQUE],0),2),0) -> ANG-121 | G29: =IFERROR(INDEX(ListeCours[],MATCH(SUMPRODUCT((ListeCours[AGENDA]=EmploiDuTemps[[#Headers],[VENDREDI]])*(ROUNDDOWN($B29,10)>=ROUNDDOWN(ListeCours[HEURE DE DÉBUT],10))*($B29<=ListeCours[HEURE DE FIN]),ListeCours[UNIQUE]),ListeCours[UNIQUE],0),2),0) -> 0 | H29: =IFERROR(INDEX(ListeCours[],MATCH(SUMPRODUCT((ListeCours[AGENDA]=EmploiDuTemps[[#Headers],[SAMEDI]])*(ROUNDDOWN($B29,10)>=ROUNDDOWN(ListeCours[HEURE DE DÉBUT],10))*($B29<=ListeCours[HEURE DE FIN]),ListeCours[UNIQUE]),ListeCours[UNIQUE],0),2),0) -> 0 | I29: =IFERROR(INDEX(ListeCours[],MATCH(SUMPRODUCT((ListeCours[AGENDA]=EmploiDuTemps[[#Headers],[DIMANCHE]])*(ROUNDDOWN($B29,10)>=ROUNDDOWN(ListeCours[HEURE DE DÉBUT],10))*($B29<=ListeCours[HEURE DE FIN]),ListeCours[UNIQUE]),ListeCours[UNIQUE],0),2),0) -> 0
B30: 13:30:00 | C30: =IFERROR(INDEX(ListeCours[],MATCH(SUMPRODUCT((ListeCours[AGENDA]=EmploiDuTemps[[#Headers],[LUNDI]])*(ROUNDDOWN($B30,10)>=ROUNDDOWN(ListeCours[HEURE DE DÉBUT],10))*($B30<=ListeCours[HEURE DE FIN]),ListeCours[UNIQUE]),ListeCours[UNIQUE],0),2),0) -> FR-121 | D30: =IFERROR(INDEX(ListeCours[],MATCH(SUMPRODUCT((ListeCours[AGENDA]=EmploiDuTemps[[#Headers],[MARDI]])*(ROUNDDOWN($B30,10)>=ROUNDDOWN(ListeCours[HEURE DE DÉBUT],10))*($B30<=ListeCours[HEURE DE FIN]),ListeCours[UNIQUE]),ListeCours[UNIQUE],0),2),0) -> 0 | E30: =IFERROR(INDEX(ListeCours[],MATCH(SUMPRODUCT((ListeCours[AGENDA]=EmploiDuTemps[[#Headers],[MERCREDI]])*(ROUNDDOWN($B30,10)>=ROUNDDOWN(ListeCours[HEURE DE DÉBUT],10))*($B30<=ListeCours[HEURE DE FIN]),ListeCours[UNIQUE]),ListeCours[UNIQUE],0),2),0) -> 0 | F30: =IFERROR(INDEX(ListeCours[],MATCH(SUMPRODUCT((ListeCours[AGENDA]=EmploiDuTemps[[#Headers],[JEUDI]])*(ROUNDDOWN($B30,10)>=ROUNDDOWN(ListeCours[HEURE DE DÉBUT],10))*($B30<=ListeCours[HEURE DE FIN]),ListeCours[UNIQUE]),ListeCours[UNIQUE],0),2),0) -> ANG-121 | G30: =IFERROR(INDEX(ListeCours[],MATCH(SUMPRODUCT((ListeCours[AGENDA]=EmploiDuTemps[[#Headers],[VENDREDI]])*(ROUNDDOWN($B30,10)>=ROUNDDOWN(ListeCours[HEURE DE DÉBUT],10))*($B30<=ListeCours[HEURE DE FIN]),ListeCours[UNIQUE]),ListeCours[UNIQUE],0),2),0) -> 0 | H30: =IFERROR(INDEX(ListeCours[],MATCH(SUMPRODUCT((ListeCours[AGENDA]=EmploiDuTemps[[#Headers],[SAMEDI]])*(ROUNDDOWN($B30,10)>=ROUNDDOWN(ListeCours[HEURE DE DÉBUT],10))*($B30<=ListeCours[HEURE DE FIN]),ListeCours[UNIQUE]),ListeCours[UNIQUE],0),2),0) -> 0 | I30: =IFERROR(INDEX(ListeCours[],MATCH(SUMPRODUCT((ListeCours[AGENDA]=EmploiDuTemps[[#Headers],[DIMANCHE]])*(ROUNDDOWN($B30,10)>=ROUNDDOWN(ListeCours[HEURE DE DÉBUT],10))*($B30<=ListeCours[HEURE DE FIN]),ListeCours[UNIQUE]),ListeCours[UNIQUE],0),2),0) -> 0
B31: 13:45:00 | C31: =IFERROR(INDEX(ListeCours[],MATCH(SUMPRODUCT((ListeCours[AGENDA]=EmploiDuTemps[[#Headers],[LUNDI]])*(ROUNDDOWN($B31,10)>=ROUNDDOWN(ListeCours[HEURE DE DÉBUT],10))*($B31<=ListeCours[HEURE DE FIN]),ListeCours[UNIQUE]),ListeCours[UNIQUE],0),2),0) -> FR-121 | D31: =IFERROR(INDEX(ListeCours[],MATCH(SUMPRODUCT((ListeCours[AGENDA]=EmploiDuTemps[[#Headers],[MARDI]])*(ROUNDDOWN($B31,10)>=ROUNDDOWN(ListeCours[HEURE DE DÉBUT],10))*($B31<=ListeCours[HEURE DE FIN]),ListeCours[UNIQUE]),ListeCours[UNIQUE],0),2),0) -> 0 | E31: =IFERROR(INDEX(ListeCours[],MATCH(SUMPRODUCT((ListeCours[AGENDA]=EmploiDuTemps[[#Headers],[MERCREDI]])*(ROUNDDOWN($B31,10)>=ROUNDDOWN(ListeCours[HEURE DE DÉBUT],10))*($B31<=ListeCours[HEURE DE FIN]),ListeCours[UNIQUE]),ListeCours[UNIQUE],0),2),0) -> 0 | F31: =IFERROR(INDEX(ListeCours[],MATCH(SUMPRODUCT((ListeCours[AGENDA]=EmploiDuTemps[[#Headers],[JEUDI]])*(ROUNDDOWN($B31,10)>=ROUNDDOWN(ListeCours[HEURE DE DÉBUT],10))*($B31<=ListeCours[HEURE DE FIN]),ListeCours[UNIQUE]),ListeCours[UNIQUE],0),2),0) -> ANG-121 | G31: =IFERROR(INDEX(ListeCours[],MATCH(SUMPRODUCT((ListeCours[AGENDA]=EmploiDuTemps[[#Headers],[VENDREDI]])*(ROUNDDOWN($B31,10)>=ROUNDDOWN(ListeCours[HEURE DE DÉBUT],10))*($B31<=ListeCours[HEURE DE FIN]),ListeCours[UNIQUE]),ListeCours[UNIQUE],0),2),0) -> 0 | H31: =IFERROR(INDEX(ListeCours[],MATCH(SUMPRODUCT((ListeCours[AGENDA]=EmploiDuTemps[[#Headers],[SAMEDI]])*(ROUNDDOWN($B31,10)>=ROUNDDOWN(ListeCours[HEURE DE DÉBUT],10))*($B31<=ListeCours[HEURE DE FIN]),ListeCours[UNIQUE]),ListeCours[UNIQUE],0),2),0) -> 0 | I31: =IFERROR(INDEX(ListeCours[],MATCH(SUMPRODUCT((ListeCours[AGENDA]=EmploiDuTemps[[#Headers],[DIMANCHE]])*(ROUNDDOWN($B31,10)>=ROUNDDOWN(ListeCours[HEURE DE DÉBUT],10))*($B31<=ListeCours[HEURE DE FIN]),ListeCours[UNIQUE]),ListeCours[UNIQUE],0),2),0) -> 0
B32: 14:00:00 | C32: =IFERROR(INDEX(ListeCours[],MATCH(SUMPRODUCT((ListeCours[AGENDA]=EmploiDuTemps[[#Headers],[LUNDI]])*(ROUNDDOWN($B32,10)>=ROUNDDOWN(ListeCours[HEURE DE DÉBUT],10))*($B32<=ListeCours[HEURE DE FIN]),ListeCours[UNIQUE]),ListeCours[UNIQUE],0),2),0) -> FR-121 | D32: =IFERROR(INDEX(ListeCours[],MATCH(SUMPRODUCT((ListeCours[AGENDA]=EmploiDuTemps[[#Headers],[MARDI]])*(ROUNDDOWN($B32,10)>=ROUNDDOWN(ListeCours[HEURE DE DÉBUT],10))*($B32<=ListeCours[HEURE DE FIN]),ListeCours[UNIQUE]),ListeCours[UNIQUE],0),2),0) -> 0 | E32: =IFERROR(INDEX(ListeCours[],MATCH(SUMPRODUCT((ListeCours[AGENDA]=EmploiDuTemps[[#Headers],[MERCREDI]])*(ROUNDDOWN($B32,10)>=ROUNDDOWN(ListeCours[HEURE DE DÉBUT],10))*($B32<=ListeCours[HEURE DE FIN]),ListeCours[UNIQUE]),ListeCours[UNIQUE],0),2),0) -> 0 | F32: =IFERROR(INDEX(ListeCours[],MATCH(SUMPRODUCT((ListeCours[AGENDA]=EmploiDuTemps[[#Headers],[JEUDI]])*(ROUNDDOWN($B32,10)>=ROUNDDOWN(ListeCours[HEURE DE DÉBUT],10))*($B32<=ListeCours[HEURE DE FIN]),ListeCours[UNIQUE]),ListeCours[UNIQUE],0),2),0) -> ANG-121 | G32: =IFERROR(INDEX(ListeCours[],MATCH(SUMPRODUCT((ListeCours[AGENDA]=EmploiDuTemps[[#Headers],[VENDREDI]])*(ROUNDDOWN($B32,10)>=ROUNDDOWN(ListeCours[HEURE DE DÉBUT],10))*($B32<=ListeCours[HEURE DE FIN]),ListeCours[UNIQUE]),ListeCours[UNIQUE],0),2),0) -> 0 | H32: =IFERROR(INDEX(ListeCours[],MATCH(SUMPRODUCT((ListeCours[AGENDA]=EmploiDuTemps[[#Headers],[SAMEDI]])*(ROUNDDOWN($B32,10)>=ROUNDDOWN(ListeCours[HEURE DE DÉBUT],10))*($B32<=ListeCours[HEURE DE FIN]),ListeCours[UNIQUE]),ListeCours[UNIQUE],0),2),0) -> 0 | I32: =IFERROR(INDEX(ListeCours[],MATCH(SUMPRODUCT((ListeCours[AGENDA]=EmploiDuTemps[[#Headers],[DIMANCHE]])*(ROUNDDOWN($B32,10)>=ROUNDDOWN(ListeCours[HEURE DE DÉBUT],10))*($B32<=ListeCours[HEURE DE FIN]),ListeCours[UNIQUE]),ListeCours[UNIQUE],0),2),0) -> 0
B33: 14:15:00 | C33: =IFERROR(INDEX(ListeCours[],MATCH(SUMPRODUCT((ListeCours[AGENDA]=EmploiDuTemps[[#Headers],[LUNDI]])*(ROUNDDOWN($B33,10)>=ROUNDDOWN(ListeCours[HEURE DE DÉBUT],10))*($B33<=ListeCours[HEURE DE FIN]),ListeCours[UNIQUE]),ListeCours[UNIQUE],0),2),0) -> 0 | D33: =IFERROR(INDEX(ListeCours[],MATCH(SUMPRODUCT((ListeCours[AGENDA]=EmploiDuTemps[[#Headers],[MARDI]])*(ROUNDDOWN($B33,10)>=ROUNDDOWN(ListeCours[HEURE DE DÉBUT],10))*($B33<=ListeCours[HEURE DE FIN]),ListeCours[UNIQUE]),ListeCours[UNIQUE],0),2),0) -> 0 | E33: =IFERROR(INDEX(ListeCours[],MATCH(SUMPRODUCT((ListeCours[AGENDA]=EmploiDuTemps[[#Headers],[MERCREDI]])*(ROUNDDOWN($B33,10)>=ROUNDDOWN(ListeCours[HEURE DE DÉBUT],10))*($B33<=ListeCours[HEURE DE FIN]),ListeCours[UNIQUE]),ListeCours[UNIQUE],0),2),0) -> 0 | F33: =IFERROR(INDEX(ListeCours[],MATCH(SUMPRODUCT((ListeCours[AGENDA]=EmploiDuTemps[[#Headers],[JEUDI]])*(ROUNDDOWN($B33,10)>=ROUNDDOWN(ListeCours[HEURE DE DÉBUT],10))*($B33<=ListeCours[HEURE DE FIN]),ListeCours[UNIQUE]),ListeCours[UNIQUE],0),2),0) -> 0 | G33: =IFERROR(INDEX(ListeCours[],MATCH(SUMPRODUCT((ListeCours[AGENDA]=EmploiDuTemps[[#Headers],[VENDREDI]])*(ROUNDDOWN($B33,10)>=ROUNDDOWN(ListeCours[HEURE DE DÉBUT],10))*($B33<=ListeCours[HEURE DE FIN]),ListeCours[UNIQUE]),ListeCours[UNIQUE],0),2),0) -> 0 | H33: =IFERROR(INDEX(ListeCours[],MATCH(SUMPRODUCT((ListeCours[AGENDA]=EmploiDuTemps[[#Headers],[SAMEDI]])*(ROUNDDOWN($B33,10)>=ROUNDDOWN(ListeCours[HEURE DE DÉBUT],10))*($B33<=ListeCours[HEURE DE FIN]),ListeCours[UNIQUE]),ListeCours[UNIQUE],0),2),0) -> 0 | I33: =IFERROR(INDEX(ListeCours[],MATCH(SUMPRODUCT((ListeCours[AGENDA]=EmploiDuTemps[[#Headers],[DIMANCHE]])*(ROUNDDOWN($B33,10)>=ROUNDDOWN(ListeCours[HEURE DE DÉBUT],10))*($B33<=ListeCours[HEURE DE FIN]),ListeCours[UNIQUE]),ListeCours[UNIQUE],0),2),0) -> 0
B34: 14:30:00 | C34: =IFERROR(INDEX(ListeCours[],MATCH(SUMPRODUCT((ListeCours[AGENDA]=EmploiDuTemps[[#Headers],[LUNDI]])*(ROUNDDOWN($B34,10)>=ROUNDDOWN(ListeCours[HEURE DE DÉBUT],10))*($B34<=ListeCours[HEURE DE FIN]),ListeCours[UNIQUE]),ListeCours[UNIQUE],0),2),0) -> 0 | D34: =IFERROR(INDEX(ListeCours[],MATCH(SUMPRODUCT((ListeCours[AGENDA]=EmploiDuTemps[[#Headers],[MARDI]])*(ROUNDDOWN($B34,10)>=ROUNDDOWN(ListeCours[HEURE DE DÉBUT],10))*($B34<=ListeCours[HEURE DE FIN]),ListeCours[UNIQUE]),ListeCours[UNIQUE],0),2),0) -> 0 | E34: =IFERROR(INDEX(ListeCours[],MATCH(SUMPRODUCT((ListeCours[AGENDA]=EmploiDuTemps[[#Headers],[MERCREDI]])*(ROUNDDOWN($B34,10)>=ROUNDDOWN(ListeCours[HEURE DE DÉBUT],10))*($B34<=ListeCours[HEURE DE FIN]),ListeCours[UNIQUE]),ListeCours[UNIQUE],0),2),0) -> 0 | F34: =IFERROR(INDEX(ListeCours[],MATCH(SUMPRODUCT((ListeCours[AGENDA]=EmploiDuTemps[[#Headers],[JEUDI]])*(ROUNDDOWN($B34,10)>=ROUNDDOWN(ListeCours[HEURE DE DÉBUT],10))*($B34<=ListeCours[HEURE DE FIN]),ListeCours[UNIQUE]),ListeCours[UNIQUE],0),2),0) -> 0 | G34: =IFERROR(INDEX(ListeCours[],MATCH(SUMPRODUCT((ListeCours[AGENDA]=EmploiDuTemps[[#Headers],[VENDREDI]])*(ROUNDDOWN($B34,10)>=ROUNDDOWN(ListeCours[HEURE DE DÉBUT],10))*($B34<=ListeCours[HEURE DE FIN]),ListeCours[UNIQUE]),ListeCours[UNIQUE],0),2),0) -> 0 | H34: =IFERROR(INDEX(ListeCours[],MATCH(SUMPRODUCT((ListeCours[AGENDA]=EmploiDuTemps[[#Headers],[SAMEDI]])*(ROUNDDOWN($B34,10)>=ROUNDDOWN(ListeCours[HEURE DE DÉBUT],10))*($B34<=ListeCours[HEURE DE FIN]),ListeCours[UNIQUE]),ListeCours[UNIQUE],0),2),0) -> 0 | I34: =IFERROR(INDEX(ListeCours[],MATCH(SUMPRODUCT((ListeCours[AGENDA]=EmploiDuTemps[[#Headers],[DIMANCHE]])*(ROUNDDOWN($B34,10)>=ROUNDDOWN(ListeCours[HEURE DE DÉBUT],10))*($B34<=ListeCours[HEURE DE FIN]),ListeCours[UNIQUE]),ListeCours[UNIQUE],0),2),0) -> 0
B35: 14:45:00 | C35: =IFERROR(INDEX(ListeCours[],MATCH(SUMPRODUCT((ListeCours[AGENDA]=EmploiDuTemps[[#Headers],[LUNDI]])*(ROUNDDOWN($B35,10)>=ROUNDDOWN(ListeCours[HEURE DE DÉBUT],10))*($B35<=ListeCours[HEURE DE FIN]),ListeCours[UNIQUE]),ListeCours[UNIQUE],0),2),0) -> 0 | D35: =IFERROR(INDEX(ListeCours[],MATCH(SUMPRODUCT((ListeCours[AGENDA]=EmploiDuTemps[[#Headers],[MARDI]])*(ROUNDDOWN($B35,10)>=ROUNDDOWN(ListeCours[HEURE DE DÉBUT],10))*($B35<=ListeCours[HEURE DE FIN]),ListeCours[UNIQUE]),ListeCours[UNIQUE],0),2),0) -> 0 | E35: =IFERROR(INDEX(ListeCours[],MATCH(SUMPRODUCT((ListeCours[AGENDA]=EmploiDuTemps[[#Headers],[MERCREDI]])*(ROUNDDOWN($B35,10)>=ROUNDDOWN(ListeCours[HEURE DE DÉBUT],10))*($B35<=ListeCours[HEURE DE FIN]),ListeCours[UNIQUE]),ListeCours[UNIQUE],0),2),0) -> 0 | F35: =IFERROR(INDEX(ListeCours[],MATCH(SUMPRODUCT((ListeCours[AGENDA]=EmploiDuTemps[[#Headers],[JEUDI]])*(ROUNDDOWN($B35,10)>=ROUNDDOWN(ListeCours[HEURE DE DÉBUT],10))*($B35<=ListeCours[HEURE DE FIN]),ListeCours[UNIQUE]),ListeCours[UNIQUE],0),2),0) -> 0 | G35: =IFERROR(INDEX(ListeCours[],MATCH(SUMPRODUCT((ListeCours[AGENDA]=EmploiDuTemps[[#Headers],[VENDREDI]])*(ROUNDDOWN($B35,10)>=ROUNDDOWN(ListeCours[HEURE DE DÉBUT],10))*($B35<=ListeCours[HEURE DE FIN]),ListeCours[UNIQUE]),ListeCours[UNIQUE],0),2),0) -> 0 | H35: =IFERROR(INDEX(ListeCours[],MATCH(SUMPRODUCT((ListeCours[AGENDA]=EmploiDuTemps[[#Headers],[SAMEDI]])*(ROUNDDOWN($B35,10)>=ROUNDDOWN(ListeCours[HEURE DE DÉBUT],10))*($B35<=ListeCours[HEURE DE FIN]),ListeCours[UNIQUE]),ListeCours[UNIQUE],0),2),0) -> 0 | I35: =IFERROR(INDEX(ListeCours[],MATCH(SUMPRODUCT((ListeCours[AGENDA]=EmploiDuTemps[[#Headers],[DIMANCHE]])*(ROUNDDOWN($B35,10)>=ROUNDDOWN(ListeCours[HEURE DE DÉBUT],10))*($B35<=ListeCours[HEURE DE FIN]),ListeCours[UNIQUE]),ListeCours[UNIQUE],0),2),0) -> 0
B36: 15:00:00 | C36: =IFERROR(INDEX(ListeCours[],MATCH(SUMPRODUCT((ListeCours[AGENDA]=EmploiDuTemps[[#Headers],[LUNDI]])*(ROUNDDOWN($B36,10)>=ROUNDDOWN(ListeCours[HEURE DE DÉBUT],10))*($B36<=ListeCours[HEURE DE FIN]),ListeCours[UNIQUE]),ListeCours[UNIQUE],0),2),0) -> 0 | D36: =IFERROR(INDEX(ListeCours[],MATCH(SUMPRODUCT((ListeCours[AGENDA]=EmploiDuTemps[[#Headers],[MARDI]])*(ROUNDDOWN($B36,10)>=ROUNDDOWN(ListeCours[HEURE DE DÉBUT],10))*($B36<=ListeCours[HEURE DE FIN]),ListeCours[UNIQUE]),ListeCours[UNIQUE],0),2),0) -> 0 | E36: =IFERROR(INDEX(ListeCours[],MATCH(SUMPRODUCT((ListeCours[AGENDA]=EmploiDuTemps[[#Headers],[MERCREDI]])*(ROUNDDOWN($B36,10)>=ROUNDDOWN(ListeCours[HEURE DE DÉBUT],10))*($B36<=ListeCours[HEURE DE FIN]),ListeCours[UNIQUE]),ListeCours[UNIQUE],0),2),0) -> 0 | F36: =IFERROR(INDEX(ListeCours[],MATCH(SUMPRODUCT((ListeCours[AGENDA]=EmploiDuTemps[[#Headers],[JEUDI]])*(ROUNDDOWN($B36,10)>=ROUNDDOWN(ListeCours[HEURE DE DÉBUT],10))*($B36<=ListeCours[HEURE DE FIN]),ListeCours[UNIQUE]),ListeCours[UNIQUE],0),2),0) -> 0 | G36: =IFERROR(INDEX(ListeCours[],MATCH(SUMPRODUCT((ListeCours[AGENDA]=EmploiDuTemps[[#Headers],[VENDREDI]])*(ROUNDDOWN($B36,10)>=ROUNDDOWN(ListeCours[HEURE DE DÉBUT],10))*($B36<=ListeCours[HEURE DE FIN]),ListeCours[UNIQUE]),ListeCours[UNIQUE],0),2),0) -> 0 | H36: =IFERROR(INDEX(ListeCours[],MATCH(SUMPRODUCT((ListeCours[AGENDA]=EmploiDuTemps[[#Headers],[SAMEDI]])*(ROUNDDOWN($B36,10)>=ROUNDDOWN(ListeCours[HEURE DE DÉBUT],10))*($B36<=ListeCours[HEURE DE FIN]),ListeCours[UNIQUE]),ListeCours[UNIQUE],0),2),0) -> 0 | I36: =IFERROR(INDEX(ListeCours[],MATCH(SUMPRODUCT((ListeCours[AGENDA]=EmploiDuTemps[[#Headers],[DIMANCHE]])*(ROUNDDOWN($B36,10)>=ROUNDDOWN(ListeCours[HEURE DE DÉBUT],10))*($B36<=ListeCours[HEURE DE FIN]),ListeCours[UNIQUE]),ListeCours[UNIQUE],0),2),0) -> 0
B37: =B36+Incrément -> 15:15:00 | C37: =IFERROR(INDEX(ListeCours[],MATCH(SUMPRODUCT((ListeCours[AGENDA]=EmploiDuTemps[[#Headers],[LUNDI]])*(ROUNDDOWN($B37,10)>=ROUNDDOWN(ListeCours[HEURE DE DÉBUT],10))*($B37<=ListeCours[HEURE DE FIN]),ListeCours[UNIQUE]),ListeCours[UNIQUE],0),2),0) -> 0 | D37: =IFERROR(INDEX(ListeCours[],MATCH(SUMPRODUCT((ListeCours[AGENDA]=EmploiDuTemps[[#Headers],[MARDI]])*(ROUNDDOWN($B37,10)>=ROUNDDOWN(ListeCours[HEURE DE DÉBUT],10))*($B37<=ListeCours[HEURE DE FIN]),ListeCours[UNIQUE]),ListeCours[UNIQUE],0),2),0) -> 0 | E37: =IFERROR(INDEX(ListeCours[],MATCH(SUMPRODUCT((ListeCours[AGENDA]=EmploiDuTemps[[#Headers],[MERCREDI]])*(ROUNDDOWN($B37,10)>=ROUNDDOWN(ListeCours[HEURE DE DÉBUT],10))*($B37<=ListeCours[HEURE DE FIN]),ListeCours[UNIQUE]),ListeCours[UNIQUE],0),2),0) -> 0 | F37: =IFERROR(INDEX(ListeCours[],MATCH(SUMPRODUCT((ListeCours[AGENDA]=EmploiDuTemps[[#Headers],[JEUDI]])*(ROUNDDOWN($B37,10)>=ROUNDDOWN(ListeCours[HEURE DE DÉBUT],10))*($B37<=ListeCours[HEURE DE FIN]),ListeCours[UNIQUE]),ListeCours[UNIQUE],0),2),0) -> 0 | G37: =IFERROR(INDEX(ListeCours[],MATCH(SUMPRODUCT((ListeCours[AGENDA]=EmploiDuTemps[[#Headers],[VENDREDI]])*(ROUNDDOWN($B37,10)>=ROUNDDOWN(ListeCours[HEURE DE DÉBUT],10))*($B37<=ListeCours[HEURE DE FIN]),ListeCours[UNIQUE]),ListeCours[UNIQUE],0),2),0) -> 0 | H37: =IFERROR(INDEX(ListeCours[],MATCH(SUMPRODUCT((ListeCours[AGENDA]=EmploiDuTemps[[#Headers],[SAMEDI]])*(ROUNDDOWN($B37,10)>=ROUNDDOWN(ListeCours[HEURE DE DÉBUT],10))*($B37<=ListeCours[HEURE DE FIN]),ListeCours[UNIQUE]),ListeCours[UNIQUE],0),2),0) -> 0 | I37: =IFERROR(INDEX(ListeCours[],MATCH(SUMPRODUCT((ListeCours[AGENDA]=EmploiDuTemps[[#Headers],[DIMANCHE]])*(ROUNDDOWN($B37,10)>=ROUNDDOWN(ListeCours[HEURE DE DÉBUT],10))*($B37<=ListeCours[HEURE DE FIN]),ListeCours[UNIQUE]),ListeCours[UNIQUE],0),2),0) -> 0
B38: 15:30:00 | C38: =IFERROR(INDEX(ListeCours[],MATCH(SUMPRODUCT((ListeCours[AGENDA]=EmploiDuTemps[[#Headers],[LUNDI]])*(ROUNDDOWN($B38,10)>=ROUNDDOWN(ListeCours[HEURE DE DÉBUT],10))*($B38<=ListeCours[HEURE DE FIN]),ListeCours[UNIQUE]),ListeCours[UNIQUE],0),2),0) -> 0 | D38: =IFERROR(INDEX(ListeCours[],MATCH(SUMPRODUCT((ListeCours[AGENDA]=EmploiDuTemps[[#Headers],[MARDI]])*(ROUNDDOWN($B38,10)>=ROUNDDOWN(ListeCours[HEURE DE DÉBUT],10))*($B38<=ListeCours[HEURE DE FIN]),ListeCours[UNIQUE]),ListeCours[UNIQUE],0),2),0) -> 0 | E38: =IFERROR(INDEX(ListeCours[],MATCH(SUMPRODUCT((ListeCours[AGENDA]=EmploiDuTemps[[#Headers],[MERCREDI]])*(ROUNDDOWN($B38,10)>=ROUNDDOWN(ListeCours[HEURE DE DÉBUT],10))*($B38<=ListeCours[HEURE DE FIN]),ListeCours[UNIQUE]),ListeCours[UNIQUE],0),2),0) -> 0 | F38: =IFERROR(INDEX(ListeCours[],MATCH(SUMPRODUCT((ListeCours[AGENDA]=EmploiDuTemps[[#Headers],[JEUDI]])*(ROUNDDOWN($B38,10)>=ROUNDDOWN(ListeCours[HEURE DE DÉBUT],10))*($B38<=ListeCours[HEURE DE FIN]),ListeCours[UNIQUE]),ListeCours[UNIQUE],0),2),0) -> 0 | G38: =IFERROR(INDEX(ListeCours[],MATCH(SUMPRODUCT((ListeCours[AGENDA]=EmploiDuTemps[[#Headers],[VENDREDI]])*(ROUNDDOWN($B38,10)>=ROUNDDOWN(ListeCours[HEURE DE DÉBUT],10))*($B38<=ListeCours[HEURE DE FIN]),ListeCours[UNIQUE]),ListeCours[UNIQUE],0),2),0) -> 0 | H38: =IFERROR(INDEX(ListeCours[],MATCH(SUMPRODUCT((ListeCours[AGENDA]=EmploiDuTemps[[#Headers],[SAMEDI]])*(ROUNDDOWN($B38,10)>=ROUNDDOWN(ListeCours[HEURE DE DÉBUT],10))*($B38<=ListeCours[HEURE DE FIN]),ListeCours[UNIQUE]),ListeCours[UNIQUE],0),2),0) -> 0 | I38: =IFERROR(INDEX(ListeCours[],MATCH(SUMPRODUCT((ListeCours[AGENDA]=EmploiDuTemps[[#Headers],[DIMANCHE]])*(ROUNDDOWN($B38,10)>=ROUNDDOWN(ListeCours[HEURE DE DÉBUT],10))*($B38<=ListeCours[HEURE DE FIN]),ListeCours[UNIQUE]),ListeCours[UNIQUE],0),2),0) -> 0
B39: 15:45:00 | C39: =IFERROR(INDEX(ListeCours[],MATCH(SUMPRODUCT((ListeCours[AGENDA]=EmploiDuTemps[[#Headers],[LUNDI]])*(ROUNDDOWN($B39,10)>=ROUNDDOWN(ListeCours[HEURE DE DÉBUT],10))*($B39<=ListeCours[HEURE DE FIN]),ListeCours[UNIQUE]),ListeCours[UNIQUE],0),2),0) -> 0 | D39: =IFERROR(INDEX(ListeCours[],MATCH(SUMPRODUCT((ListeCours[AGENDA]=EmploiDuTemps[[#Headers],[MARDI]])*(ROUNDDOWN($B39,10)>=ROUNDDOWN(ListeCours[HEURE DE DÉBUT],10))*($B39<=ListeCours[HEURE DE FIN]),ListeCours[UNIQUE]),ListeCours[UNIQUE],0),2),0) -> 0 | E39: =IFERROR(INDEX(ListeCours[],MATCH(SUMPRODUCT((ListeCours[AGENDA]=EmploiDuTemps[[#Headers],[MERCREDI]])*(ROUNDDOWN($B39,10)>=ROUNDDOWN(ListeCours[HEURE DE DÉBUT],10))*($B39<=ListeCours[HEURE DE FIN]),ListeCours[UNIQUE]),ListeCours[UNIQUE],0),2),0) -> 0 | F39: =IFERROR(INDEX(ListeCours[],MATCH(SUMPRODUCT((ListeCours[AGENDA]=EmploiDuTemps[[#Headers],[JEUDI]])*(ROUNDDOWN($B39,10)>=ROUNDDOWN(ListeCours[HEURE DE DÉBUT],10))*($B39<=ListeCours[HEURE DE FIN]),ListeCours[UNIQUE]),ListeCours[UNIQUE],0),2),0) -> 0 | G39: =IFERROR(INDEX(ListeCours[],MATCH(SUMPRODUCT((ListeCours[AGENDA]=EmploiDuTemps[[#Headers],[VENDREDI]])*(ROUNDDOWN($B39,10)>=ROUNDDOWN(ListeCours[HEURE DE DÉBUT],10))*($B39<=ListeCours[HEURE DE FIN]),ListeCours[UNIQUE]),ListeCours[UNIQUE],0),2),0) -> 0 | H39: =IFERROR(INDEX(ListeCours[],MATCH(SUMPRODUCT((ListeCours[AGENDA]=EmploiDuTemps[[#Headers],[SAMEDI]])*(ROUNDDOWN($B39,10)>=ROUNDDOWN(ListeCours[HEURE DE DÉBUT],10))*($B39<=ListeCours[HEURE DE FIN]),ListeCours[UNIQUE]),ListeCours[UNIQUE],0),2),0) -> 0 | I39: =IFERROR(INDEX(ListeCours[],MATCH(SUMPRODUCT((ListeCours[AGENDA]=EmploiDuTemps[[#Headers],[DIMANCHE]])*(ROUNDDOWN($B39,10)>=ROUNDDOWN(ListeCours[HEURE DE DÉBUT],10))*($B39<=ListeCours[HEURE DE FIN]),ListeCours[UNIQUE]),ListeCours[UNIQUE],0),2),0) -> 0
B40: 16:00:00 | C40: =IFERROR(INDEX(ListeCours[],MATCH(SUMPRODUCT((ListeCours[AGENDA]=EmploiDuTemps[[#Headers],[LUNDI]])*(ROUNDDOWN($B40,10)>=ROUNDDOWN(ListeCours[HEURE DE DÉBUT],10))*($B40<=ListeCours[HEURE DE FIN]),ListeCours[UNIQUE]),ListeCours[UNIQUE],0),2),0) -> HG-111 | D40: =IFERROR(INDEX(ListeCours[],MATCH(SUMPRODUCT((ListeCours[AGENDA]=EmploiDuTemps[[#Headers],[MARDI]])*(ROUNDDOWN($B40,10)>=ROUNDDOWN(ListeCours[HEURE DE DÉBUT],10))*($B40<=ListeCours[HEURE DE FIN]),ListeCours[UNIQUE]),ListeCours[UNIQUE],0),2),0) -> 0 | E40: =IFERROR(INDEX(ListeCours[],MATCH(SUMPRODUCT((ListeCours[AGENDA]=EmploiDuTemps[[#Headers],[MERCREDI]])*(ROUNDDOWN($B40,10)>=ROUNDDOWN(ListeCours[HEURE DE DÉBUT],10))*($B40<=ListeCours[HEURE DE FIN]),ListeCours[UNIQUE]),ListeCours[UNIQUE],0),2),0) -> 0 | F40: =IFERROR(INDEX(ListeCours[],MATCH(SUMPRODUCT((ListeCours[AGENDA]=EmploiDuTemps[[#Headers],[JEUDI]])*(ROUNDDOWN($B40,10)>=ROUNDDOWN(ListeCours[HEURE DE DÉBUT],10))*($B40<=ListeCours[HEURE DE FIN]),ListeCours[UNIQUE]),ListeCours[UNIQUE],0),2),0) -> 0 | G40: =IFERROR(INDEX(ListeCours[],MATCH(SUMPRODUCT((ListeCours[AGENDA]=EmploiDuTemps[[#Headers],[VENDREDI]])*(ROUNDDOWN($B40,10)>=ROUNDDOWN(ListeCours[HEURE DE DÉBUT],10))*($B40<=ListeCours[HEURE DE FIN]),ListeCours[UNIQUE]),ListeCours[UNIQUE],0),2),0) -> 0 | H40: =IFERROR(INDEX(ListeCours[],MATCH(SUMPRODUCT((ListeCours[AGENDA]=EmploiDuTemps[[#Headers],[SAMEDI]])*(ROUNDDOWN($B40,10)>=ROUNDDOWN(ListeCours[HEURE DE DÉBUT],10))*($B40<=ListeCours[HEURE DE FIN]),ListeCours[UNIQUE]),ListeCours[UNIQUE],0),2),0) -> 0 | I40: =IFERROR(INDEX(ListeCours[],MATCH(SUMPRODUCT((ListeCours[AGENDA]=EmploiDuTemps[[#Headers],[DIMANCHE]])*(ROUNDDOWN($B40,10)>=ROUNDDOWN(ListeCours[HEURE DE DÉBUT],10))*($B40<=ListeCours[HEURE DE FIN]),ListeCours[UNIQUE]),ListeCours[UNIQUE],0),2),0) -> 0
B41: 16:15:00 | C41: =IFERROR(INDEX(ListeCours[],MATCH(SUMPRODUCT((ListeCours[AGENDA]=EmploiDuTemps[[#Headers],[LUNDI]])*(ROUNDDOWN($B41,10)>=ROUNDDOWN(ListeCours[HEURE DE DÉBUT],10))*($B41<=ListeCours[HEURE DE FIN]),ListeCours[UNIQUE]),ListeCours[UNIQUE],0),2),0) -> HG-111 | D41: =IFERROR(INDEX(ListeCours[],MATCH(SUMPRODUCT((ListeCours[AGENDA]=EmploiDuTemps[[#Headers],[MARDI]])*(ROUNDDOWN($B41,10)>=ROUNDDOWN(ListeCours[HEURE DE DÉBUT],10))*($B41<=ListeCours[HEURE DE FIN]),ListeCours[UNIQUE]),ListeCours[UNIQUE],0),2),0) -> 0 | E41: =IFERROR(INDEX(ListeCours[],MATCH(SUMPRODUCT((ListeCours[AGENDA]=EmploiDuTemps[[#Headers],[MERCREDI]])*(ROUNDDOWN($B41,10)>=ROUNDDOWN(ListeCours[HEURE DE DÉBUT],10))*($B41<=ListeCours[HEURE DE FIN]),ListeCours[UNIQUE]),ListeCours[UNIQUE],0),2),0) -> 0 | F41: =IFERROR(INDEX(ListeCours[],MATCH(SUMPRODUCT((ListeCours[AGENDA]=EmploiDuTemps[[#Headers],[JEUDI]])*(ROUNDDOWN($B41,10)>=ROUNDDOWN(ListeCours[HEURE DE DÉBUT],10))*($B41<=ListeCours[HEURE DE FIN]),ListeCours[UNIQUE]),ListeCours[UNIQUE],0),2),0) -> 0 | G41: =IFERROR(INDEX(ListeCours[],MATCH(SUMPRODUCT((ListeCours[AGENDA]=EmploiDuTemps[[#Headers],[VENDREDI]])*(ROUNDDOWN($B41,10)>=ROUNDDOWN(ListeCours[HEURE DE DÉBUT],10))*($B41<=ListeCours[HEURE DE FIN]),ListeCours[UNIQUE]),ListeCours[UNIQUE],0),2),0) -> 0 | H41: =IFERROR(INDEX(ListeCours[],MATCH(SUMPRODUCT((ListeCours[AGENDA]=EmploiDuTemps[[#Headers],[SAMEDI]])*(ROUNDDOWN($B41,10)>=ROUNDDOWN(ListeCours[HEURE DE DÉBUT],10))*($B41<=ListeCours[HEURE DE FIN]),ListeCours[UNIQUE]),ListeCours[UNIQUE],0),2),0) -> 0 | I41: =IFERROR(INDEX(ListeCours[],MATCH(SUMPRODUCT((ListeCours[AGENDA]=EmploiDuTemps[[#Headers],[DIMANCHE]])*(ROUNDDOWN($B41,10)>=ROUNDDOWN(ListeCours[HEURE DE DÉBUT],10))*($B41<=ListeCours[HEURE DE FIN]),ListeCours[UNIQUE]),ListeCours[UNIQUE],0),2),0) -> 0
B42: 16:30:00 | C42: =IFERROR(INDEX(ListeCours[],MATCH(SUMPRODUCT((ListeCours[AGENDA]=EmploiDuTemps[[#Headers],[LUNDI]])*(ROUNDDOWN($B42,10)>=ROUNDDOWN(ListeCours[HEURE DE DÉBUT],10))*($B42<=ListeCours[HEURE DE FIN]),ListeCours[UNIQUE]),ListeCours[UNIQUE],0),2),0) -> HG-111 | D42: =IFERROR(INDEX(ListeCours[],MATCH(SUMPRODUCT((ListeCours[AGENDA]=EmploiDuTemps[[#Headers],[MARDI]])*(ROUNDDOWN($B42,10)>=ROUNDDOWN(ListeCours[HEURE DE DÉBUT],10))*($B42<=ListeCours[HEURE DE FIN]),ListeCours[UNIQUE]),ListeCours[UNIQUE],0),2),0) -> 0 | E42: =IFERROR(INDEX(ListeCours[],MATCH(SUMPRODUCT((ListeCours[AGENDA]=EmploiDuTemps[[#Headers],[MERCREDI]])*(ROUNDDOWN($B42,10)>=ROUNDDOWN(ListeCours[HEURE DE DÉBUT],10))*($B42<=ListeCours[HEURE DE FIN]),ListeCours[UNIQUE]),ListeCours[UNIQUE],0),2),0) -> 0 | F42: =IFERROR(INDEX(ListeCours[],MATCH(SUMPRODUCT((ListeCours[AGENDA]=EmploiDuTemps[[#Headers],[JEUDI]])*(ROUNDDOWN($B42,10)>=ROUNDDOWN(ListeCours[HEURE DE DÉBUT],10))*($B42<=ListeCours[HEURE DE FIN]),ListeCours[UNIQUE]),ListeCours[UNIQUE],0),2),0) -> 0 | G42: =IFERROR(INDEX(ListeCours[],MATCH(SUMPRODUCT((ListeCours[AGENDA]=EmploiDuTemps[[#Headers],[VENDREDI]])*(ROUNDDOWN($B42,10)>=ROUNDDOWN(ListeCours[HEURE DE DÉBUT],10))*($B42<=ListeCours[HEURE DE FIN]),ListeCours[UNIQUE]),ListeCours[UNIQUE],0),2),0) -> 0 | H42: =IFERROR(INDEX(ListeCours[],MATCH(SUMPRODUCT((ListeCours[AGENDA]=EmploiDuTemps[[#Headers],[SAMEDI]])*(ROUNDDOWN($B42,10)>=ROUNDDOWN(ListeCours[HEURE DE DÉBUT],10))*($B42<=ListeCours[HEURE DE FIN]),ListeCours[UNIQUE]),ListeCours[UNIQUE],0),2),0) -> 0 | I42: =IFERROR(INDEX(ListeCours[],MATCH(SUMPRODUCT((ListeCours[AGENDA]=EmploiDuTemps[[#Headers],[DIMANCHE]])*(ROUNDDOWN($B42,10)>=ROUNDDOWN(ListeCours[HEURE DE DÉBUT],10))*($B42<=ListeCours[HEURE DE FIN]),ListeCours[UNIQUE]),ListeCours[UNIQUE],0),2),0) -> 0
B43: 16:45:00 | C43: =IFERROR(INDEX(ListeCours[],MATCH(SUMPRODUCT((ListeCours[AGENDA]=EmploiDuTemps[[#Headers],[LUNDI]])*(ROUNDDOWN($B43,10)>=ROUNDDOWN(ListeCours[HEURE DE DÉBUT],10))*($B43<=ListeCours[HEURE DE FIN]),ListeCours[UNIQUE]),ListeCours[UNIQUE],0),2),0) -> HG-111 | D43: =IFERROR(INDEX(ListeCours[],MATCH(SUMPRODUCT((ListeCours[AGENDA]=EmploiDuTemps[[#Headers],[MARDI]])*(ROUNDDOWN($B43,10)>=ROUNDDOWN(ListeCours[HEURE DE DÉBUT],10))*($B43<=ListeCours[HEURE DE FIN]),ListeCours[UNIQUE]),ListeCours[UNIQUE],0),2),0) -> 0 | E43: =IFERROR(INDEX(ListeCours[],MATCH(SUMPRODUCT((ListeCours[AGENDA]=EmploiDuTemps[[#Headers],[MERCREDI]])*(ROUNDDOWN($B43,10)>=ROUNDDOWN(ListeCours[HEURE DE DÉBUT],10))*($B43<=ListeCours[HEURE DE FIN]),ListeCours[UNIQUE]),ListeCours[UNIQUE],0),2),0) -> 0 | F43: =IFERROR(INDEX(ListeCours[],MATCH(SUMPRODUCT((ListeCours[AGENDA]=EmploiDuTemps[[#Headers],[JEUDI]])*(ROUNDDOWN($B43,10)>=ROUNDDOWN(ListeCours[HEURE DE DÉBUT],10))*($B43<=ListeCours[HEURE DE FIN]),ListeCours[UNIQUE]),ListeCours[UNIQUE],0),2),0) -> 0 | G43: =IFERROR(INDEX(ListeCours[],MATCH(SUMPRODUCT((ListeCours[AGENDA]=EmploiDuTemps[[#Headers],[VENDREDI]])*(ROUNDDOWN($B43,10)>=ROUNDDOWN(ListeCours[HEURE DE DÉBUT],10))*($B43<=ListeCours[HEURE DE FIN]),ListeCours[UNIQUE]),ListeCours[UNIQUE],0),2),0) -> 0 | H43: =IFERROR(INDEX(ListeCours[],MATCH(SUMPRODUCT((ListeCours[AGENDA]=EmploiDuTemps[[#Headers],[SAMEDI]])*(ROUNDDOWN($B43,10)>=ROUNDDOWN(ListeCours[HEURE DE DÉBUT],10))*($B43<=ListeCours[HEURE DE FIN]),ListeCours[UNIQUE]),ListeCours[UNIQUE],0),2),0) -> 0 | I43: =IFERROR(INDEX(ListeCours[],MATCH(SUMPRODUCT((ListeCours[AGENDA]=EmploiDuTemps[[#Headers],[DIMANCHE]])*(ROUNDDOWN($B43,10)>=ROUNDDOWN(ListeCours[HEURE DE DÉBUT],10))*($B43<=ListeCours[HEURE DE FIN]),ListeCours[UNIQUE]),ListeCours[UNIQUE],0),2),0) -> 0
B44: 17:00:00 | C44: =IFERROR(INDEX(ListeCours[],MATCH(SUMPRODUCT((ListeCours[AGENDA]=EmploiDuTemps[[#Headers],[LUNDI]])*(ROUNDDOWN($B44,10)>=ROUNDDOWN(ListeCours[HEURE DE DÉBUT],10))*($B44<=ListeCours[HEURE DE FIN]),ListeCours[UNIQUE]),ListeCours[UNIQUE],0),2),0) -> HG-111 | D44: =IFERROR(INDEX(ListeCours[],MATCH(SUMPRODUCT((ListeCours[AGENDA]=EmploiDuTemps[[#Headers],[MARDI]])*(ROUNDDOWN($B44,10)>=ROUNDDOWN(ListeCours[HEURE DE DÉBUT],10))*($B44<=ListeCours[HEURE DE FIN]),ListeCours[UNIQUE]),ListeCours[UNIQUE],0),2),0) -> 0 | E44: =IFERROR(INDEX(ListeCours[],MATCH(SUMPRODUCT((ListeCours[AGENDA]=EmploiDuTemps[[#Headers],[MERCREDI]])*(ROUNDDOWN($B44,10)>=ROUNDDOWN(ListeCours[HEURE DE DÉBUT],10))*($B44<=ListeCours[HEURE DE FIN]),ListeCours[UNIQUE]),ListeCours[UNIQUE],0),2),0) -> 0 | F44: =IFERROR(INDEX(ListeCours[],MATCH(SUMPRODUCT((ListeCours[AGENDA]=EmploiDuTemps[[#Headers],[JEUDI]])*(ROUNDDOWN($B44,10)>=ROUNDDOWN(ListeCours[HEURE DE DÉBUT],10))*($B44<=ListeCours[HEURE DE FIN]),ListeCours[UNIQUE]),ListeCours[UNIQUE],0),2),0) -> 0 | G44: =IFERROR(INDEX(ListeCours[],MATCH(SUMPRODUCT((ListeCours[AGENDA]=EmploiDuTemps[[#Headers],[VENDREDI]])*(ROUNDDOWN($B44,10)>=ROUNDDOWN(ListeCours[HEURE DE DÉBUT],10))*($B44<=ListeCours[HEURE DE FIN]),ListeCours[UNIQUE]),ListeCours[UNIQUE],0),2),0) -> 0 | H44: =IFERROR(INDEX(ListeCours[],MATCH(SUMPRODUCT((ListeCours[AGENDA]=EmploiDuTemps[[#Headers],[SAMEDI]])*(ROUNDDOWN($B44,10)>=ROUNDDOWN(ListeCours[HEURE DE DÉBUT],10))*($B44<=ListeCours[HEURE DE FIN]),ListeCours[UNIQUE]),ListeCours[UNIQUE],0),2),0) -> 0 | I44: =IFERROR(INDEX(ListeCours[],MATCH(SUMPRODUCT((ListeCours[AGENDA]=EmploiDuTemps[[#Headers],[DIMANCHE]])*(ROUNDDOWN($B44,10)>=ROUNDDOWN(ListeCours[HEURE DE DÉBUT],10))*($B44<=ListeCours[HEURE DE FIN]),ListeCours[UNIQUE]),ListeCours[UNIQUE],0),2),0) -> 0
B45: 17:15:00 | C45: =IFERROR(INDEX(ListeCours[],MATCH(SUMPRODUCT((ListeCours[AGENDA]=EmploiDuTemps[[#Headers],[LUNDI]])*(ROUNDDOWN($B45,10)>=ROUNDDOWN(ListeCours[HEURE DE DÉBUT],10))*($B45<=ListeCours[HEURE DE FIN]),ListeCours[UNIQUE]),ListeCours[UNIQUE],0),2),0) -> 0 | D45: =IFERROR(INDEX(ListeCours[],MATCH(SUMPRODUCT((ListeCours[AGENDA]=EmploiDuTemps[[#Headers],[MARDI]])*(ROUNDDOWN($B45,10)>=ROUNDDOWN(ListeCours[HEURE DE DÉBUT],10))*($B45<=ListeCours[HEURE DE FIN]),ListeCours[UNIQUE]),ListeCours[UNIQUE],0),2),0) -> 0 | E45: =IFERROR(INDEX(ListeCours[],MATCH(SUMPRODUCT((ListeCours[AGENDA]=EmploiDuTemps[[#Headers],[MERCREDI]])*(ROUNDDOWN($B45,10)>=ROUNDDOWN(ListeCours[HEURE DE DÉBUT],10))*($B45<=ListeCours[HEURE DE FIN]),ListeCours[UNIQUE]),ListeCours[UNIQUE],0),2),0) -> 0 | F45: =IFERROR(INDEX(ListeCours[],MATCH(SUMPRODUCT((ListeCours[AGENDA]=EmploiDuTemps[[#Headers],[JEUDI]])*(ROUNDDOWN($B45,10)>=ROUNDDOWN(ListeCours[HEURE DE DÉBUT],10))*($B45<=ListeCours[HEURE DE FIN]),ListeCours[UNIQUE]),ListeCours[UNIQUE],0),2),0) -> 0 | G45: =IFERROR(INDEX(ListeCours[],MATCH(SUMPRODUCT((ListeCours[AGENDA]=EmploiDuTemps[[#Headers],[VENDREDI]])*(ROUNDDOWN($B45,10)>=ROUNDDOWN(ListeCours[HEURE DE DÉBUT],10))*($B45<=ListeCours[HEURE DE FIN]),ListeCours[UNIQUE]),ListeCours[UNIQUE],0),2),0) -> 0 | H45: =IFERROR(INDEX(ListeCours[],MATCH(SUMPRODUCT((ListeCours[AGENDA]=EmploiDuTemps[[#Headers],[SAMEDI]])*(ROUNDDOWN($B45,10)>=ROUNDDOWN(ListeCours[HEURE DE DÉBUT],10))*($B45<=ListeCours[HEURE DE FIN]),ListeCours[UNIQUE]),ListeCours[UNIQUE],0),2),0) -> 0 | I45: =IFERROR(INDEX(ListeCours[],MATCH(SUMPRODUCT((ListeCours[AGENDA]=EmploiDuTemps[[#Headers],[DIMANCHE]])*(ROUNDDOWN($B45,10)>=ROUNDDOWN(ListeCours[HEURE DE DÉBUT],10))*($B45<=ListeCours[HEURE DE FIN]),ListeCours[UNIQUE]),ListeCours[UNIQUE],0),2),0) -> 0
B46: 17:30:00 | C46: =IFERROR(INDEX(ListeCours[],MATCH(SUMPRODUCT((ListeCours[AGENDA]=EmploiDuTemps[[#Headers],[LUNDI]])*(ROUNDDOWN($B46,10)>=ROUNDDOWN(ListeCours[HEURE DE DÉBUT],10))*($B46<=ListeCours[HEURE DE FIN]),ListeCours[UNIQUE]),ListeCours[UNIQUE],0),2),0) -> 0 | D46: =IFERROR(INDEX(ListeCours[],MATCH(SUMPRODUCT((ListeCours[AGENDA]=EmploiDuTemps[[#Headers],[MARDI]])*(ROUNDDOWN($B46,10)>=ROUNDDOWN(ListeCours[HEURE DE DÉBUT],10))*($B46<=ListeCours[HEURE DE FIN]),ListeCours[UNIQUE]),ListeCours[UNIQUE],0),2),0) -> 0 | E46: =IFERROR(INDEX(ListeCours[],MATCH(SUMPRODUCT((ListeCours[AGENDA]=EmploiDuTemps[[#Headers],[MERCREDI]])*(ROUNDDOWN($B46,10)>=ROUNDDOWN(ListeCours[HEURE DE DÉBUT],10))*($B46<=ListeCours[HEURE DE FIN]),ListeCours[UNIQUE]),ListeCours[UNIQUE],0),2),0) -> 0 | F46: =IFERROR(INDEX(ListeCours[],MATCH(SUMPRODUCT((ListeCours[AGENDA]=EmploiDuTemps[[#Headers],[JEUDI]])*(ROUNDDOWN($B46,10)>=ROUNDDOWN(ListeCours[HEURE DE DÉBUT],10))*($B46<=ListeCours[HEURE DE FIN]),ListeCours[UNIQUE]),ListeCours[UNIQUE],0),2),0) -> 0 | G46: =IFERROR(INDEX(ListeCours[],MATCH(SUMPRODUCT((ListeCours[AGENDA]=EmploiDuTemps[[#Headers],[VENDREDI]])*(ROUNDDOWN($B46,10)>=ROUNDDOWN(ListeCours[HEURE DE DÉBUT],10))*($B46<=ListeCours[HEURE DE FIN]),ListeCours[UNIQUE]),ListeCours[UNIQUE],0),2),0) -> 0 | H46: =IFERROR(INDEX(ListeCours[],MATCH(SUMPRODUCT((ListeCours[AGENDA]=EmploiDuTemps[[#Headers],[SAMEDI]])*(ROUNDDOWN($B46,10)>=ROUNDDOWN(ListeCours[HEURE DE DÉBUT],10))*($B46<=ListeCours[HEURE DE FIN]),ListeCours[UNIQUE]),ListeCours[UNIQUE],0),2),0) -> 0 | I46: =IFERROR(INDEX(ListeCours[],MATCH(SUMPRODUCT((ListeCours[AGENDA]=EmploiDuTemps[[#Headers],[DIMANCHE]])*(ROUNDDOWN($B46,10)>=ROUNDDOWN(ListeCours[HEURE DE DÉBUT],10))*($B46<=ListeCours[HEURE DE FIN]),ListeCours[UNIQUE]),ListeCours[UNIQUE],0),2),0) -> 0
B47: 17:45:00 | C47: =IFERROR(INDEX(ListeCours[],MATCH(SUMPRODUCT((ListeCours[AGENDA]=EmploiDuTemps[[#Headers],[LUNDI]])*(ROUNDDOWN($B47,10)>=ROUNDDOWN(ListeCours[HEURE DE DÉBUT],10))*($B47<=ListeCours[HEURE DE FIN]),ListeCours[UNIQUE]),ListeCours[UNIQUE],0),2),0) -> 0 | D47: =IFERROR(INDEX(ListeCours[],MATCH(SUMPRODUCT((ListeCours[AGENDA]=EmploiDuTemps[[#Headers],[MARDI]])*(ROUNDDOWN($B47,10)>=ROUNDDOWN(ListeCours[HEURE DE DÉBUT],10))*($B47<=ListeCours[HEURE DE FIN]),ListeCours[UNIQUE]),ListeCours[UNIQUE],0),2),0) -> 0 | E47: =IFERROR(INDEX(ListeCours[],MATCH(SUMPRODUCT((ListeCours[AGENDA]=EmploiDuTemps[[#Headers],[MERCREDI]])*(ROUNDDOWN($B47,10)>=ROUNDDOWN(ListeCours[HEURE DE DÉBUT],10))*($B47<=ListeCours[HEURE DE FIN]),ListeCours[UNIQUE]),ListeCours[UNIQUE],0),2),0) -> 0 | F47: =IFERROR(INDEX(ListeCours[],MATCH(SUMPRODUCT((ListeCours[AGENDA]=EmploiDuTemps[[#Headers],[JEUDI]])*(ROUNDDOWN($B47,10)>=ROUNDDOWN(ListeCours[HEURE DE DÉBUT],10))*($B47<=ListeCours[HEURE DE FIN]),ListeCours[UNIQUE]),ListeCours[UNIQUE],0),2),0) -> 0 | G47: =IFERROR(INDEX(ListeCours[],MATCH(SUMPRODUCT((ListeCours[AGENDA]=EmploiDuTemps[[#Headers],[VENDREDI]])*(ROUNDDOWN($B47,10)>=ROUNDDOWN(ListeCours[HEURE DE DÉBUT],10))*($B47<=ListeCours[HEURE DE FIN]),ListeCours[UNIQUE]),ListeCours[UNIQUE],0),2),0) -> 0 | H47: =IFERROR(INDEX(ListeCours[],MATCH(SUMPRODUCT((ListeCours[AGENDA]=EmploiDuTemps[[#Headers],[SAMEDI]])*(ROUNDDOWN($B47,10)>=ROUNDDOWN(ListeCours[HEURE DE DÉBUT],10))*($B47<=ListeCours[HEURE DE FIN]),ListeCours[UNIQUE]),ListeCours[UNIQUE],0),2),0) -> 0 | I47: =IFERROR(INDEX(ListeCours[],MATCH(SUMPRODUCT((ListeCours[AGENDA]=EmploiDuTemps[[#Headers],[DIMANCHE]])*(ROUNDDOWN($B47,10)>=ROUNDDOWN(ListeCours[HEURE DE DÉBUT],10))*($B47<=ListeCours[HEURE DE FIN]),ListeCours[UNIQUE]),ListeCours[UNIQUE],0),2),0) -> 0
B48: 18:00:00 | C48: =IFERROR(INDEX(ListeCours[],MATCH(SUMPRODUCT((ListeCours[AGENDA]=EmploiDuTemps[[#Headers],[LUNDI]])*(ROUNDDOWN($B48,10)>=ROUNDDOWN(ListeCours[HEURE DE DÉBUT],10))*($B48<=ListeCours[HEURE DE FIN]),ListeCours[UNIQUE]),ListeCours[UNIQUE],0),2),0) -> 0 | D48: =IFERROR(INDEX(ListeCours[],MATCH(SUMPRODUCT((ListeCours[AGENDA]=EmploiDuTemps[[#Headers],[MARDI]])*(ROUNDDOWN($B48,10)>=ROUNDDOWN(ListeCours[HEURE DE DÉBUT],10))*($B48<=ListeCours[HEURE DE FIN]),ListeCours[UNIQUE]),ListeCours[UNIQUE],0),2),0) -> 0 | E48: =IFERROR(INDEX(ListeCours[],MATCH(SUMPRODUCT((ListeCours[AGENDA]=EmploiDuTemps[[#Headers],[MERCREDI]])*(ROUNDDOWN($B48,10)>=ROUNDDOWN(ListeCours[HEURE DE DÉBUT],10))*($B48<=ListeCours[HEURE DE FIN]),ListeCours[UNIQUE]),ListeCours[UNIQUE],0),2),0) -> 0 | F48: =IFERROR(INDEX(ListeCours[],MATCH(SUMPRODUCT((ListeCours[AGENDA]=EmploiDuTemps[[#Headers],[JEUDI]])*(ROUNDDOWN($B48,10)>=ROUNDDOWN(ListeCours[HEURE DE DÉBUT],10))*($B48<=ListeCours[HEURE DE FIN]),ListeCours[UNIQUE]),ListeCours[UNIQUE],0),2),0) -> 0 | G48: =IFERROR(INDEX(ListeCours[],MATCH(SUMPRODUCT((ListeCours[AGENDA]=EmploiDuTemps[[#Headers],[VENDREDI]])*(ROUNDDOWN($B48,10)>=ROUNDDOWN(ListeCours[HEURE DE DÉBUT],10))*($B48<=ListeCours[HEURE DE FIN]),ListeCours[UNIQUE]),ListeCours[UNIQUE],0),2),0) -> 0 | H48: =IFERROR(INDEX(ListeCours[],MATCH(SUMPRODUCT((ListeCours[AGENDA]=EmploiDuTemps[[#Headers],[SAMEDI]])*(ROUNDDOWN($B48,10)>=ROUNDDOWN(ListeCours[HEURE DE DÉBUT],10))*($B48<=ListeCours[HEURE DE FIN]),ListeCours[UNIQUE]),ListeCours[UNIQUE],0),2),0) -> 0 | I48: =IFERROR(INDEX(ListeCours[],MATCH(SUMPRODUCT((ListeCours[AGENDA]=EmploiDuTemps[[#Headers],[DIMANCHE]])*(ROUNDDOWN($B48,10)>=ROUNDDOWN(ListeCours[HEURE DE DÉBUT],10))*($B48<=ListeCours[HEURE DE FIN]),ListeCours[UNIQUE]),ListeCours[UNIQUE],0),2),0) -> 0
B49: 18:15:00 | C49: =IFERROR(INDEX(ListeCours[],MATCH(SUMPRODUCT((ListeCours[AGENDA]=EmploiDuTemps[[#Headers],[LUNDI]])*(ROUNDDOWN($B49,10)>=ROUNDDOWN(ListeCours[HEURE DE DÉBUT],10))*($B49<=ListeCours[HEURE DE FIN]),ListeCours[UNIQUE]),ListeCours[UNIQUE],0),2),0) -> 0 | D49: =IFERROR(INDEX(ListeCours[],MATCH(SUMPRODUCT((ListeCours[AGENDA]=EmploiDuTemps[[#Headers],[MARDI]])*(ROUNDDOWN($B49,10)>=ROUNDDOWN(ListeCours[HEURE DE DÉBUT],10))*($B49<=ListeCours[HEURE DE FIN]),ListeCours[UNIQUE]),ListeCours[UNIQUE],0),2),0) -> 0 | E49: =IFERROR(INDEX(ListeCours[],MATCH(SUMPRODUCT((ListeCours[AGENDA]=EmploiDuTemps[[#Headers],[MERCREDI]])*(ROUNDDOWN($B49,10)>=ROUNDDOWN(ListeCours[HEURE DE DÉBUT],10))*($B49<=ListeCours[HEURE DE FIN]),ListeCours[UNIQUE]),ListeCours[UNIQUE],0),2),0) -> 0 | F49: =IFERROR(INDEX(ListeCours[],MATCH(SUMPRODUCT((ListeCours[AGENDA]=EmploiDuTemps[[#Headers],[JEUDI]])*(ROUNDDOWN($B49,10)>=ROUNDDOWN(ListeCours[HEURE DE DÉBUT],10))*($B49<=ListeCours[HEURE DE FIN]),ListeCours[UNIQUE]),ListeCours[UNIQUE],0),2),0) -> 0 | G49: =IFERROR(INDEX(ListeCours[],MATCH(SUMPRODUCT((ListeCours[AGENDA]=EmploiDuTemps[[#Headers],[VENDREDI]])*(ROUNDDOWN($B49,10)>=ROUNDDOWN(ListeCours[HEURE DE DÉBUT],10))*($B49<=ListeCours[HEURE DE FIN]),ListeCours[UNIQUE]),ListeCours[UNIQUE],0),2),0) -> 0 | H49: =IFERROR(INDEX(ListeCours[],MATCH(SUMPRODUCT((ListeCours[AGENDA]=EmploiDuTemps[[#Headers],[SAMEDI]])*(ROUNDDOWN($B49,10)>=ROUNDDOWN(ListeCours[HEURE DE DÉBUT],10))*($B49<=ListeCours[HEURE DE FIN]),ListeCours[UNIQUE]),ListeCours[UNIQUE],0),2),0) -> 0 | I49: =IFERROR(INDEX(ListeCours[],MATCH(SUMPRODUCT((ListeCours[AGENDA]=EmploiDuTemps[[#Headers],[DIMANCHE]])*(ROUNDDOWN($B49,10)>=ROUNDDOWN(ListeCours[HEURE DE DÉBUT],10))*($B49<=ListeCours[HEURE DE FIN]),ListeCours[UNIQUE]),ListeCours[UNIQUE],0),2),0) -> 0
B50: 18:30:00 | C50: =IFERROR(INDEX(ListeCours[],MATCH(SUMPRODUCT((ListeCours[AGENDA]=EmploiDuTemps[[#Headers],[LUNDI]])*(ROUNDDOWN($B50,10)>=ROUNDDOWN(ListeCours[HEURE DE DÉBUT],10))*($B50<=ListeCours[HEURE DE FIN]),ListeCours[UNIQUE]),ListeCours[UNIQUE],0),2),0) -> 0 | D50: =IFERROR(INDEX(ListeCours[],MATCH(SUMPRODUCT((ListeCours[AGENDA]=EmploiDuTemps[[#Headers],[MARDI]])*(ROUNDDOWN($B50,10)>=ROUNDDOWN(ListeCours[HEURE DE DÉBUT],10))*($B50<=ListeCours[HEURE DE FIN]),ListeCours[UNIQUE]),ListeCours[UNIQUE],0),2),0) -> 0 | E50: =IFERROR(INDEX(ListeCours[],MATCH(SUMPRODUCT((ListeCours[AGENDA]=EmploiDuTemps[[#Headers],[MERCREDI]])*(ROUNDDOWN($B50,10)>=ROUNDDOWN(ListeCours[HEURE DE DÉBUT],10))*($B50<=ListeCours[HEURE DE FIN]),ListeCours[UNIQUE]),ListeCours[UNIQUE],0),2),0) -> 0 | F50: =IFERROR(INDEX(ListeCours[],MATCH(SUMPRODUCT((ListeCours[AGENDA]=EmploiDuTemps[[#Headers],[JEUDI]])*(ROUNDDOWN($B50,10)>=ROUNDDOWN(ListeCours[HEURE DE DÉBUT],10))*($B50<=ListeCours[HEURE DE FIN]),ListeCours[UNIQUE]),ListeCours[UNIQUE],0),2),0) -> 0 | G50: =IFERROR(INDEX(ListeCours[],MATCH(SUMPRODUCT((ListeCours[AGENDA]=EmploiDuTemps[[#Headers],[VENDREDI]])*(ROUNDDOWN($B50,10)>=ROUNDDOWN(ListeCours[HEURE DE DÉBUT],10))*($B50<=ListeCours[HEURE DE FIN]),ListeCours[UNIQUE]),ListeCours[UNIQUE],0),2),0) -> 0 | H50: =IFERROR(INDEX(ListeCours[],MATCH(SUMPRODUCT((ListeCours[AGENDA]=EmploiDuTemps[[#Headers],[SAMEDI]])*(ROUNDDOWN($B50,10)>=ROUNDDOWN(ListeCours[HEURE DE DÉBUT],10))*($B50<=ListeCours[HEURE DE FIN]),ListeCours[UNIQUE]),ListeCours[UNIQUE],0),2),0) -> 0 | I50: =IFERROR(INDEX(ListeCours[],MATCH(SUMPRODUCT((ListeCours[AGENDA]=EmploiDuTemps[[#Headers],[DIMANCHE]])*(ROUNDDOWN($B50,10)>=ROUNDDOWN(ListeCours[HEURE DE DÉBUT],10))*($B50<=ListeCours[HEURE DE FIN]),ListeCours[UNIQUE]),ListeCours[UNIQUE],0),2),0) -> 0
B51: 18:45:00 | C51: =IFERROR(INDEX(ListeCours[],MATCH(SUMPRODUCT((ListeCours[AGENDA]=EmploiDuTemps[[#Headers],[LUNDI]])*(ROUNDDOWN($B51,10)>=ROUNDDOWN(ListeCours[HEURE DE DÉBUT],10))*($B51<=ListeCours[HEURE DE FIN]),ListeCours[UNIQUE]),ListeCours[UNIQUE],0),2),0) -> 0 | D51: =IFERROR(INDEX(ListeCours[],MATCH(SUMPRODUCT((ListeCours[AGENDA]=EmploiDuTemps[[#Headers],[MARDI]])*(ROUNDDOWN($B51,10)>=ROUNDDOWN(ListeCours[HEURE DE DÉBUT],10))*($B51<=ListeCours[HEURE DE FIN]),ListeCours[UNIQUE]),ListeCours[UNIQUE],0),2),0) -> 0 | E51: =IFERROR(INDEX(ListeCours[],MATCH(SUMPRODUCT((ListeCours[AGENDA]=EmploiDuTemps[[#Headers],[MERCREDI]])*(ROUNDDOWN($B51,10)>=ROUNDDOWN(ListeCours[HEURE DE DÉBUT],10))*($B51<=ListeCours[HEURE DE FIN]),ListeCours[UNIQUE]),ListeCours[UNIQUE],0),2),0) -> 0 | F51: =IFERROR(INDEX(ListeCours[],MATCH(SUMPRODUCT((ListeCours[AGENDA]=EmploiDuTemps[[#Headers],[JEUDI]])*(ROUNDDOWN($B51,10)>=ROUNDDOWN(ListeCours[HEURE DE DÉBUT],10))*($B51<=ListeCours[HEURE DE FIN]),ListeCours[UNIQUE]),ListeCours[UNIQUE],0),2),0) -> 0 | G51: =IFERROR(INDEX(ListeCours[],MATCH(SUMPRODUCT((ListeCours[AGENDA]=EmploiDuTemps[[#Headers],[VENDREDI]])*(ROUNDDOWN($B51,10)>=ROUNDDOWN(ListeCours[HEURE DE DÉBUT],10))*($B51<=ListeCours[HEURE DE FIN]),ListeCours[UNIQUE]),ListeCours[UNIQUE],0),2),0) -> 0 | H51: =IFERROR(INDEX(ListeCours[],MATCH(SUMPRODUCT((ListeCours[AGENDA]=EmploiDuTemps[[#Headers],[SAMEDI]])*(ROUNDDOWN($B51,10)>=ROUNDDOWN(ListeCours[HEURE DE DÉBUT],10))*($B51<=ListeCours[HEURE DE FIN]),ListeCours[UNIQUE]),ListeCours[UNIQUE],0),2),0) -> 0 | I51: =IFERROR(INDEX(ListeCours[],MATCH(SUMPRODUCT((ListeCours[AGENDA]=EmploiDuTemps[[#Headers],[DIMANCHE]])*(ROUNDDOWN($B51,10)>=ROUNDDOWN(ListeCours[HEURE DE DÉBUT],10))*($B51<=ListeCours[HEURE DE FIN]),ListeCours[UNIQUE]),ListeCours[UNIQUE],0),2),0) -> 0
B52: 19:00:00 | C52: =IFERROR(INDEX(ListeCours[],MATCH(SUMPRODUCT((ListeCours[AGENDA]=EmploiDuTemps[[#Headers],[LUNDI]])*(ROUNDDOWN($B52,10)>=ROUNDDOWN(ListeCours[HEURE DE DÉBUT],10))*($B52<=ListeCours[HEURE DE FIN]),ListeCours[UNIQUE]),ListeCours[UNIQUE],0),2),0) -> 0 | D52: =IFERROR(INDEX(ListeCours[],MATCH(SUMPRODUCT((ListeCours[AGENDA]=EmploiDuTemps[[#Headers],[MARDI]])*(ROUNDDOWN($B52,10)>=ROUNDDOWN(ListeCours[HEURE DE DÉBUT],10))*($B52<=ListeCours[HEURE DE FIN]),ListeCours[UNIQUE]),ListeCours[UNIQUE],0),2),0) -> 0 | E52: =IFERROR(INDEX(ListeCours[],MATCH(SUMPRODUCT((ListeCours[AGENDA]=EmploiDuTemps[[#Headers],[MERCREDI]])*(ROUNDDOWN($B52,10)>=ROUNDDOWN(ListeCours[HEURE DE DÉBUT],10))*($B52<=ListeCours[HEURE DE FIN]),ListeCours[UNIQUE]),ListeCours[UNIQUE],0),2),0) -> 0 | F52: =IFERROR(INDEX(ListeCours[],MATCH(SUMPRODUCT((ListeCours[AGENDA]=EmploiDuTemps[[#Headers],[JEUDI]])*(ROUNDDOWN($B52,10)>=ROUNDDOWN(ListeCours[HEURE DE DÉBUT],10))*($B52<=ListeCours[HEURE DE FIN]),ListeCours[UNIQUE]),ListeCours[UNIQUE],0),2),0) -> 0 | G52: =IFERROR(INDEX(ListeCours[],MATCH(SUMPRODUCT((ListeCours[AGENDA]=EmploiDuTemps[[#Headers],[VENDREDI]])*(ROUNDDOWN($B52,10)>=ROUNDDOWN(ListeCours[HEURE DE DÉBUT],10))*($B52<=ListeCours[HEURE DE FIN]),ListeCours[UNIQUE]),ListeCours[UNIQUE],0),2),0) -> 0 | H52: =IFERROR(INDEX(ListeCours[],MATCH(SUMPRODUCT((ListeCours[AGENDA]=EmploiDuTemps[[#Headers],[SAMEDI]])*(ROUNDDOWN($B52,10)>=ROUNDDOWN(ListeCours[HEURE DE DÉBUT],10))*($B52<=ListeCours[HEURE DE FIN]),ListeCours[UNIQUE]),ListeCours[UNIQUE],0),2),0) -> 0 | I52: =IFERROR(INDEX(ListeCours[],MATCH(SUMPRODUCT((ListeCours[AGENDA]=EmploiDuTemps[[#Headers],[DIMANCHE]])*(ROUNDDOWN($B52,10)>=ROUNDDOWN(ListeCours[HEURE DE DÉBUT],10))*($B52<=ListeCours[HEURE DE FIN]),ListeCours[UNIQUE]),ListeCours[UNIQUE],0),2),0) -> 0
B53: 19:15:00 | C53: =IFERROR(INDEX(ListeCours[],MATCH(SUMPRODUCT((ListeCours[AGENDA]=EmploiDuTemps[[#Headers],[LUNDI]])*(ROUNDDOWN($B53,10)>=ROUNDDOWN(ListeCours[HEURE DE DÉBUT],10))*($B53<=ListeCours[HEURE DE FIN]),ListeCours[UNIQUE]),ListeCours[UNIQUE],0),2),0) -> 0 | D53: =IFERROR(INDEX(ListeCours[],MATCH(SUMPRODUCT((ListeCours[AGENDA]=EmploiDuTemps[[#Headers],[MARDI]])*(ROUNDDOWN($B53,10)>=ROUNDDOWN(ListeCours[HEURE DE DÉBUT],10))*($B53<=ListeCours[HEURE DE FIN]),ListeCours[UNIQUE]),ListeCours[UNIQUE],0),2),0) -> 0 | E53: =IFERROR(INDEX(ListeCours[],MATCH(SUMPRODUCT((ListeCours[AGENDA]=EmploiDuTemps[[#Headers],[MERCREDI]])*(ROUNDDOWN($B53,10)>=ROUNDDOWN(ListeCours[HEURE DE DÉBUT],10))*($B53<=ListeCours[HEURE DE FIN]),ListeCours[UNIQUE]),ListeCours[UNIQUE],0),2),0) -> 0 | F53: =IFERROR(INDEX(ListeCours[],MATCH(SUMPRODUCT((ListeCours[AGENDA]=EmploiDuTemps[[#Headers],[JEUDI]])*(ROUNDDOWN($B53,10)>=ROUNDDOWN(ListeCours[HEURE DE DÉBUT],10))*($B53<=ListeCours[HEURE DE FIN]),ListeCours[UNIQUE]),ListeCours[UNIQUE],0),2),0) -> 0 | G53: =IFERROR(INDEX(ListeCours[],MATCH(SUMPRODUCT((ListeCours[AGENDA]=EmploiDuTemps[[#Headers],[VENDREDI]])*(ROUNDDOWN($B53,10)>=ROUNDDOWN(ListeCours[HEURE DE DÉBUT],10))*($B53<=ListeCours[HEURE DE FIN]),ListeCours[UNIQUE]),ListeCours[UNIQUE],0),2),0) -> 0 | H53: =IFERROR(INDEX(ListeCours[],MATCH(SUMPRODUCT((ListeCours[AGENDA]=EmploiDuTemps[[#Headers],[SAMEDI]])*(ROUNDDOWN($B53,10)>=ROUNDDOWN(ListeCours[HEURE DE DÉBUT],10))*($B53<=ListeCours[HEURE DE FIN]),ListeCours[UNIQUE]),ListeCours[UNIQUE],0),2),0) -> 0 | I53: =IFERROR(INDEX(ListeCours[],MATCH(SUMPRODUCT((ListeCours[AGENDA]=EmploiDuTemps[[#Headers],[DIMANCHE]])*(ROUNDDOWN($B53,10)>=ROUNDDOWN(ListeCours[HEURE DE DÉBUT],10))*($B53<=ListeCours[HEURE DE FIN]),ListeCours[UNIQUE]),ListeCours[UNIQUE],0),2),0) -> 0
B54: 19:30:00 | C54: =IFERROR(INDEX(ListeCours[],MATCH(SUMPRODUCT((ListeCours[AGENDA]=EmploiDuTemps[[#Headers],[LUNDI]])*(ROUNDDOWN($B54,10)>=ROUNDDOWN(ListeCours[HEURE DE DÉBUT],10))*($B54<=ListeCours[HEURE DE FIN]),ListeCours[UNIQUE]),ListeCours[UNIQUE],0),2),0) -> 0 | D54: =IFERROR(INDEX(ListeCours[],MATCH(SUMPRODUCT((ListeCours[AGENDA]=EmploiDuTemps[[#Headers],[MARDI]])*(ROUNDDOWN($B54,10)>=ROUNDDOWN(ListeCours[HEURE DE DÉBUT],10))*($B54<=ListeCours[HEURE DE FIN]),ListeCours[UNIQUE]),ListeCours[UNIQUE],0),2),0) -> 0 | E54: =IFERROR(INDEX(ListeCours[],MATCH(SUMPRODUCT((ListeCours[AGENDA]=EmploiDuTemps[[#Headers],[MERCREDI]])*(ROUNDDOWN($B54,10)>=ROUNDDOWN(ListeCours[HEURE DE DÉBUT],10))*($B54<=ListeCours[HEURE DE FIN]),ListeCours[UNIQUE]),ListeCours[UNIQUE],0),2),0) -> 0 | F54: =IFERROR(INDEX(ListeCours[],MATCH(SUMPRODUCT((ListeCours[AGENDA]=EmploiDuTemps[[#Headers],[JEUDI]])*(ROUNDDOWN($B54,10)>=ROUNDDOWN(ListeCours[HEURE DE DÉBUT],10))*($B54<=ListeCours[HEURE DE FIN]),ListeCours[UNIQUE]),ListeCours[UNIQUE],0),2),0) -> 0 | G54: =IFERROR(INDEX(ListeCours[],MATCH(SUMPRODUCT((ListeCours[AGENDA]=EmploiDuTemps[[#Headers],[VENDREDI]])*(ROUNDDOWN($B54,10)>=ROUNDDOWN(ListeCours[HEURE DE DÉBUT],10))*($B54<=ListeCours[HEURE DE FIN]),ListeCours[UNIQUE]),ListeCours[UNIQUE],0),2),0) -> 0 | H54: =IFERROR(INDEX(ListeCours[],MATCH(SUMPRODUCT((ListeCours[AGENDA]=EmploiDuTemps[[#Headers],[SAMEDI]])*(ROUNDDOWN($B54,10)>=ROUNDDOWN(ListeCours[HEURE DE DÉBUT],10))*($B54<=ListeCours[HEURE DE FIN]),ListeCours[UNIQUE]),ListeCours[UNIQUE],0),2),0) -> 0 | I54: =IFERROR(INDEX(ListeCours[],MATCH(SUMPRODUCT((ListeCours[AGENDA]=EmploiDuTemps[[#Headers],[DIMANCHE]])*(ROUNDDOWN($B54,10)>=ROUNDDOWN(ListeCours[HEURE DE DÉBUT],10))*($B54<=ListeCours[HEURE DE FIN]),ListeCours[UNIQUE]),ListeCours[UNIQUE],0),2),0) -> 0
B55: 19:45:00 | C55: =IFERROR(INDEX(ListeCours[],MATCH(SUMPRODUCT((ListeCours[AGENDA]=EmploiDuTemps[[#Headers],[LUNDI]])*(ROUNDDOWN($B55,10)>=ROUNDDOWN(ListeCours[HEURE DE DÉBUT],10))*($B55<=ListeCours[HEURE DE FIN]),ListeCours[UNIQUE]),ListeCours[UNIQUE],0),2),0) -> 0 | D55: =IFERROR(INDEX(ListeCours[],MATCH(SUMPRODUCT((ListeCours[AGENDA]=EmploiDuTemps[[#Headers],[MARDI]])*(ROUNDDOWN($B55,10)>=ROUNDDOWN(ListeCours[HEURE DE DÉBUT],10))*($B55<=ListeCours[HEURE DE FIN]),ListeCours[UNIQUE]),ListeCours[UNIQUE],0),2),0) -> 0 | E55: =IFERROR(INDEX(ListeCours[],MATCH(SUMPRODUCT((ListeCours[AGENDA]=EmploiDuTemps[[#Headers],[MERCREDI]])*(ROUNDDOWN($B55,10)>=ROUNDDOWN(ListeCours[HEURE DE DÉBUT],10))*($B55<=ListeCours[HEURE DE FIN]),ListeCours[UNIQUE]),ListeCours[UNIQUE],0),2),0) -> 0 | F55: =IFERROR(INDEX(ListeCours[],MATCH(SUMPRODUCT((ListeCours[AGENDA]=EmploiDuTemps[[#Headers],[JEUDI]])*(ROUNDDOWN($B55,10)>=ROUNDDOWN(ListeCours[HEURE DE DÉBUT],10))*($B55<=ListeCours[HEURE DE FIN]),ListeCours[UNIQUE]),ListeCours[UNIQUE],0),2),0) -> 0 | G55: =IFERROR(INDEX(ListeCours[],MATCH(SUMPRODUCT((ListeCours[AGENDA]=EmploiDuTemps[[#Headers],[VENDREDI]])*(ROUNDDOWN($B55,10)>=ROUNDDOWN(ListeCours[HEURE DE DÉBUT],10))*($B55<=ListeCours[HEURE DE FIN]),ListeCours[UNIQUE]),ListeCours[UNIQUE],0),2),0) -> 0 | H55: =IFERROR(INDEX(ListeCours[],MATCH(SUMPRODUCT((ListeCours[AGENDA]=EmploiDuTemps[[#Headers],[SAMEDI]])*(ROUNDDOWN($B55,10)>=ROUNDDOWN(ListeCours[HEURE DE DÉBUT],10))*($B55<=ListeCours[HEURE DE FIN]),ListeCours[UNIQUE]),ListeCours[UNIQUE],0),2),0) -> 0 | I55: =IFERROR(INDEX(ListeCours[],MATCH(SUMPRODUCT((ListeCours[AGENDA]=EmploiDuTemps[[#Headers],[DIMANCHE]])*(ROUNDDOWN($B55,10)>=ROUNDDOWN(ListeCours[HEURE DE DÉBUT],10))*($B55<=ListeCours[HEURE DE FIN]),ListeCours[UNIQUE]),ListeCours[UNIQUE],0),2),0) -> 0
B56: 20:00:00 | C56: =IFERROR(INDEX(ListeCours[],MATCH(SUMPRODUCT((ListeCours[AGENDA]=EmploiDuTemps[[#Headers],[LUNDI]])*(ROUNDDOWN($B56,10)>=ROUNDDOWN(ListeCours[HEURE DE DÉBUT],10))*($B56<=ListeCours[HEURE DE FIN]),ListeCours[UNIQUE]),ListeCours[UNIQUE],0),2),0) -> 0 | D56: =IFERROR(INDEX(ListeCours[],MATCH(SUMPRODUCT((ListeCours[AGENDA]=EmploiDuTemps[[#Headers],[MARDI]])*(ROUNDDOWN($B56,10)>=ROUNDDOWN(ListeCours[HEURE DE DÉBUT],10))*($B56<=ListeCours[HEURE DE FIN]),ListeCours[UNIQUE]),ListeCours[UNIQUE],0),2),0) -> 0 | E56: =IFERROR(INDEX(ListeCours[],MATCH(SUMPRODUCT((ListeCours[AGENDA]=EmploiDuTemps[[#Headers],[MERCREDI]])*(ROUNDDOWN($B56,10)>=ROUNDDOWN(ListeCours[HEURE DE DÉBUT],10))*($B56<=ListeCours[HEURE DE FIN]),ListeCours[UNIQUE]),ListeCours[UNIQUE],0),2),0) -> 0 | F56: =IFERROR(INDEX(ListeCours[],MATCH(SUMPRODUCT((ListeCours[AGENDA]=EmploiDuTemps[[#Headers],[JEUDI]])*(ROUNDDOWN($B56,10)>=ROUNDDOWN(ListeCours[HEURE DE DÉBUT],10))*($B56<=ListeCours[HEURE DE FIN]),ListeCours[UNIQUE]),ListeCours[UNIQUE],0),2),0) -> 0 | G56: =IFERROR(INDEX(ListeCours[],MATCH(SUMPRODUCT((ListeCours[AGENDA]=EmploiDuTemps[[#Headers],[VENDREDI]])*(ROUNDDOWN($B56,10)>=ROUNDDOWN(ListeCours[HEURE DE DÉBUT],10))*($B56<=ListeCours[HEURE DE FIN]),ListeCours[UNIQUE]),ListeCours[UNIQUE],0),2),0) -> 0 | H56: =IFERROR(INDEX(ListeCours[],MATCH(SUMPRODUCT((ListeCours[AGENDA]=EmploiDuTemps[[#Headers],[SAMEDI]])*(ROUNDDOWN($B56,10)>=ROUNDDOWN(ListeCours[HEURE DE DÉBUT],10))*($B56<=ListeCours[HEURE DE FIN]),ListeCours[UNIQUE]),ListeCours[UNIQUE],0),2),0) -> 0 | I56: =IFERROR(INDEX(ListeCours[],MATCH(SUMPRODUCT((ListeCours[AGENDA]=EmploiDuTemps[[#Headers],[DIMANCHE]])*(ROUNDDOWN($B56,10)>=ROUNDDOWN(ListeCours[HEURE DE DÉBUT],10))*($B56<=ListeCours[HEURE DE FIN]),ListeCours[UNIQUE]),ListeCours[UNIQUE],0),2),0) -> 0

Sheet Liste des cours
B1: LISTE DES COURS | G1: Emploi du temps
B2: COURS | C2: ID | D2: AGENDA | E2: LIEU | F2: HEURE DE DÉBUT | G2: HEURE DE FIN | H2: UNIQUE
B3: Français | C3: FR-121 | D3: LUNDI | E3: Bâtiment A | F3: 13:00:00 | G3: 14:00:00 | H3: =ROW()-ROW(ListeCours[[#Headers],[UNIQUE]]) -> 1
B4: Anglais | C4: ANG-121 | D4: JEUDI | E4: Bâtiment A | F4: 13:00:00 | G4: 14:00:00 | H4: =ROW()-ROW(ListeCours[[#Headers],[UNIQUE]]) -> 2
B5: Histoire-Géo | C5: HG-111 | D5: LUNDI | E5: Bâtiment B | F5: 16:00:00 | G5: 17:00:00 | H5: =ROW()-ROW(ListeCours[[#Headers],[UNIQUE]]) -> 3
B6: Biologie | C6: SVT-295 | D6: MARDI | E6: Bâtiment B | F6: 11:00:00 | G6: 12:00:00 | H6: =ROW()-ROW(ListeCours[[#Headers],[UNIQUE]]) -> 4
B7: Physiques-Chimie | C7: PC-295 | D7: MERCREDI | E7: Bâtiment B | F7: 11:00:00 | G7: 12:00:00 | H7: =ROW()-ROW(ListeCours[[#Headers],[UNIQUE]]) -> 5
B8: Mathématiques | C8: MTH-113 | D8: MARDI | E8: Bâtiment C | F8: 08:00:00 | G8: 09:30:00 | H8: =ROW()-ROW(ListeCours[[#Headers],[UNIQUE]]) -> 6
B9: Philosophie | C9: PHL-113 | D9: VENDREDI | E9: Bâtiment C | F9: 08:10:00 | G9: 09:15:00 | H9: =ROW()-ROW(ListeCours[[#Headers],[UNIQUE]]) -> 7
B10: Allemand | C10: ALM-113 | D10: SAMEDI | E10: Bâtiment C | F10: 08:10:00 | G10: 09:15:00 | H10: =ROW()-ROW(ListeCours[[#Headers],[UNIQUE]]) -> 8
B11: Espagnol | C11: ESP-001 | D11: DIMANCHE | E11: CEG 1 | F11: 10:15:00 | G11: 12:00:00 | H11: =ROW()-ROW(ListeCours[[#Headers],[UNIQUE]]) -> 9

Sheet NOTES DEVOIRS
C3: Moy DP | D3: 13.5
C4: Moy DG | D4: 11.5
C5: Moy Mat. | D5: =(D3+D4)/2 -> 12.5
B9: ELEVES | C9: CLASSE | D9: COLLEGE | E9: Colonne1 | F9: MATIERES | G9: COEFF | H9: DATE DEVOIR | I9: TYPE DEV | J9: NOTE/20 | K9: NOTE COEFF
B10: LEGBA Chimène | C10: Tle D | D10: CEG 1 | F10: SVT | G10: 3 | H10: 2019-05-06 | I10: DP | J10: 12 | K10: =Tableau1[[#This Row],[NOTE/20]]*Tableau1[[#This Row],[COEFF]] -> 36
K11: =Tableau1[[#This Row],[NOTE/20]]*Tableau1[[#This Row],[COEFF]] -> 0
K12: =Tableau1[[#This Row],[NOTE/20]]*Tableau1[[#This Row],[COEFF]] -> 0
K13: =Tableau1[[#This Row],[NOTE/20]]*Tableau1[[#This Row],[COEFF]] -> 0
K14: =Tableau1[[#This Row],[NOTE/20]]*Tableau1[[#This Row],[COEFF]] -> 0
K15: =Tableau1[[#This Row],[NOTE/20]]*Tableau1[[#This Row],[COEFF]] -> 0
K16: =Tableau1[[#This Row],[NOTE/20]]*Tableau1[[#This Row],[COEFF]] -> 0
K17: =Tableau1[[#This Row],[NOTE/20]]*Tableau1[[#This Row],[COEFF]] -> 0
K18: =Tableau1[[#This Row],[NOTE/20]]*Tableau1[[#This Row],[COEFF]] -> 0
K19: =Tableau1[[#This Row],[NOTE/20]]*Tableau1[[#This Row],[COEFF]] -> 0
K20: =Tableau1[[#This Row],[NOTE/20]]*Tableau1[[#This Row],[COEFF]] -> 0
K21: =Tableau1[[#This Row],[NOTE/20]]*Tableau1[[#This Row],[COEFF]] -> 0
K22: =Tableau1[[#This Row],[NOTE/20]]*Tableau1[[#This Row],[COEFF]] -> 0
K23: =Tableau1[[#This Row],[NOTE/20]]*Tableau1[[#This Row],[COEFF]] -> 0
K24: =Tableau1[[#This Row],[NOTE/20]]*Tableau1[[#This Row],[COEFF]] -> 0
K25: =Tableau1[[#This Row],[NOTE/20]]*Tableau1[[#This Row],[COEFF]] -> 0
K26: =Tableau1[[#This Row],[NOTE/20]]*Tableau1[[#This Row],[COEFF]] -> 0
K27: =Tableau1[[#This Row],[NOTE/20]]*Tableau1[[#This Row],[COEFF]] -> 0
K28: =Tableau1[[#This Row],[NOTE/20]]*Tableau1[[#This Row],[COEFF]] -> 0
K29: =Tableau1[[#This Row],[NOTE/20]]*Tableau1[[#This Row],[COEFF]] -> 0
K30: =Tableau1[[#This Row],[NOTE/20]]*Tableau1[[#This Row],[COEFF]] -> 0
K31: =Tableau1[[#This Row],[NOTE/20]]*Tableau1[[#This Row],[COEFF]] -> 0
K32: =Tableau1[[#This Row],[NOTE/20]]*Tableau1[[#This Row],[COEFF]] -> 0
K33: =Tableau1[[#This Row],[NOTE/20]]*Tableau1[[#This Row],[COEFF]] -> 0
K34: =Tableau1[[#This Row],[NOTE/20]]*Tableau1[[#This Row],[COEFF]] -> 0
K35: =Tableau1[[#This Row],[NOTE/20]]*Tableau1[[#This Row],[COEFF]] -> 0
K36: =Tableau1[[#This Row],[NOTE/20]]*Tableau1[[#This Row],[COEFF]] -> 0
K37: =Tableau1[[#This Row],[NOTE/20]]*Tableau1[[#This Row],[COEFF]] -> 0
K38: =Tableau1[[#This Row],[NOTE/20]]*Tableau1[[#This Row],[COEFF]] -> 0
K39: =Tableau1[[#This Row],[NOTE/20]]*Tableau1[[#This Row],[COEFF]] -> 0
K40: =Tableau1[[#This Row],[NOTE/20]]*Tableau1[[#This Row],[COEFF]] -> 0
K41: =Tableau1[[#This Row],[NOTE/20]]*Tableau1[[#This Row],[COEFF]] -> 0
K42: =Tableau1[[#This Row],[NOTE/20]]*Tableau1[[#This Row],[COEFF]] -> 0
K43: =Tableau1[[#This Row],[NOTE/20]]*Tableau1[[#This Row],[COEFF]] -> 0
K44: =Tableau1[[#This Row],[NOTE/20]]*Tableau1[[#This Row],[COEFF]] -> 0
K45: =Tableau1[[#This Row],[NOTE/20]]*Tableau1[[#This Row],[COEFF]] -> 0
K46: =Tableau1[[#This Row],[NOTE/20]]*Tableau1[[#This Row],[COEFF]] -> 0
K47: =Tableau1[[#This Row],[NOTE/20]]*Tableau1[[#This Row],[COEFF]] -> 0
K48: =Tableau1[[#This Row],[NOTE/20]]*Tableau1[[#This Row],[COEFF]] -> 0
K49: =Tableau1[[#This Row],[NOTE/20]]*Tableau1[[#This Row],[COEFF]] -> 0
K50: =Tableau1[[#This Row],[NOTE/20]]*Tableau1[[#This Row],[COEFF]] -> 0
K51: =Tableau1[[#This Row],[NOTE/20]]*Tableau1[[#This Row],[COEFF]] -> 0
K52: =Tableau1[[#This Row],[NOTE/20]]*Tableau1[[#This Row],[COEFF]] -> 0
K53: =Tableau1[[#This Row],[NOTE/20]]*Tableau1[[#This Row],[COEFF]] -> 0
K54: =Tableau1[[#This Row],[NOTE/20]]*Tableau1[[#This Row],[COEFF]] -> 0
K55: =Tableau1[[#This Row],[NOTE/20]]*Tableau1[[#This Row],[COEFF]] -> 0
K56: =Tableau1[[#This Row],[NOTE/20]]*Tableau1[[#This Row],[COEFF]] -> 0
K57: =Tableau1[[#This Row],[NOTE/20]]*Tableau1[[#This Row],[COEFF]] -> 0
K58: =Tableau1[[#This Row],[NOTE/20]]*Tableau1[[#This Row],[COEFF]] -> 0
K59: =Tableau1[[#This Row],[NOTE/20]]*Tableau1[[#This Row],[COEFF]] -> 0
K60: =Tableau1[[#This Row],[NOTE/20]]*Tableau1[[#This Row],[COEFF]] -> 0
B61: =SUBTOTAL(103,Tableau1[ELEVES]) -> 1 | G61: =SUBTOTAL(102,Tableau1[COEFF]) -> 1 | J61: =SUBTOTAL(101,Tableau1[NOTE/20]) -> 12 | K61: =SUBTOTAL(109,Tableau1[NOTE COEFF]) -> 36

Sheet RELEVE GLOBAL
A1: Relevé de notes des élèves de la classe *********
A4: /20 | B4: Français | D4: Mathématiques | F4: Histoire-Géographie | H4: Langue Vivante 1 | J4: Langue Vivante 2 | L4: SVT | N4: Physique-Chimie | P4: Art Plastique | R4: Musique | T4: Sport | V4: /20 | W4: Moyenne | Y4: Décision
A5: Elève 1 | B5: 12 | D5: 15 | F5: 8 | H5: 14 | J5: 9 | L5: 14 | N5: 12.5 | P5: 13 | R5: 14 | T5: 10 | V5: Elève 1 | W5: =SUM(B5,D5,F5,H5,J5,L5,N5,P5,R5,T5)/10 -> 12.15 | Y5: =IF(W5>9.99,"PASSE","REDOUBLE") -> PASSE
A6: Elève 2 | B6: 8 | D6: 6 | F6: 9 | H6: 10 | J6: 9 | L6: 8 | N6: 7 | P6: 10 | R6: 10 | T6: 10 | V6: Elève 2 | W6: =SUM(B6,D6,F6,H6,J6,L6,N6,P6,R6,T6)/10 -> 8.7 | Y6: =IF(W6>9.99,"PASSE","REDOUBLE") -> REDOUBLE
A7: Elève 3 | B7: 11 | D7: 9 | F7: 14 | H7: 12 | J7: 11 | L7: 10 | N7: 13 | P7: 11 | R7: 11 | T7: 11 | V7: Elève 3 | W7: =SUM(B7,D7,F7,H7,J7,L7,N7,P7,R7,T7)/10 -> 11.3 | Y7: PASSE
A8: Elève 4 | B8: 14 | D8: 14 | F8: 12 | H8: 11 | J8: 15 | L8: 17 | N8: 12 | P8: 10 | R8: 11 | T8: 12 | V8: Elève 4 | W8: 12.8 | Y8: PASSE
A9: Elève 5 | V9: Elève 5 | W9: 0 | Y9: REDOUBLE
A10: Elève 6 | V10: Elève 6 | W10: 0 | Y10: REDOUBLE
A11: Elève 7 | V11: Elève 7 | W11: 0 | Y11: REDOUBLE
A12: Elève 8 | V12: Elève 8 | W12: 0 | Y12: REDOUBLE
A13: Elève 9 | V13: Elève 9 | W13: 0 | Y13: REDOUBLE
A14: Elève 10 | V14: Elève 10 | W14: 0 | Y14: REDOUBLE
A15: Elève 11 | V15: Elève 11 | W15: 0 | Y15: REDOUBLE
A16: Elève 12 | V16: Elève 12 | W16: 0 | Y16: REDOUBLE
A17: Elève 13 | V17: Elève 13 | W17: 0 | Y17: REDOUBLE
A18: Elève 14 | V18: Elève 14 | W18: 0 | Y18: REDOUBLE
A19: Elève 15 | V19: Elève 15 | W19: 0 | Y19: REDOUBLE
A20: Elève 16 | V20: Elève 16 | W20: 0 | Y20: REDOUBLE
A21: Elève 17 | V21: Elève 17 | W21: 0 | Y21: REDOUBLE
A22: Elève 18 | V22: Elève 18 | W22: 0 | Y22: REDOUBLE
A23: Elève 19 | V23: Elève 19 | W23: 0 | Y23: REDOUBLE
A24: Elève 20 | V24: Elève 20 | W24: 0 | Y24: REDOUBLE
A25: Elève 21 | V25: Elève 21 | W25: 0 | Y25: REDOUBLE
A26: Elève 22 | V26: Elève 22 | W26: 0 | Y26: REDOUBLE
A27: Elève 23 | V27: Elève 23 | W27: 0 | Y27: REDOUBLE
A28: Elève 24 | V28: Elève 24 | W28: 0 | Y28: REDOUBLE
A29: Moyenne de Classe | B29: =AVERAGE(B5,B6,B7,B8,B9,B10,B11,B12,B13,B14,B15,B16,B17,B18,B19,B20,B21,B22,B23,B24,B25,B26,B27,B28) -> 11.25 | D29: =AVERAGE(D5,D6,D7,D8,D9,D10,D11,D12,D13,D14,D15,D16,D17,D18,D19,D20,D21,D22,D23,D24,D25,D27,D28) -> 11 | F29: =AVERAGE(F5,F6,F7,F8,F9,F10,F11,F12,F13,F14,F15,F16,F17,F18,F19,F20,F21,F22,F23,F24,F25,F26,F27,F28) -> 10.75 | H29: =AVERAGE(H5,H6,H7,H8,H9,H10,H11,H12,H13,H14,H15,H16,H17,H18,H19,H20,H21,H22,H23,H24,H25,H26,H27,H28) -> 11.75 | J29: =AVERAGE(J5,J6,J7,J8,J9,J10,J11,J12,J13,J14,J15,J16,J17,J18,J19,J20,J21,J22,J23,J24,J25,J26,J27,J28) -> 11 | L29: =AVERAGE(L5,L6,L7,L8,L9,L10,L11,L12,L13,L14,L15,L16,L17,L18,L19,L20,L21,L22,L23,L24,L25,L26,L27,L28) -> 12.25 | N29: =AVERAGE(N5,N6,N7,N8,N9,N10,N11,N12,N13,N14,N15,N16,N17,N18,N19,N20,N21,N22,N23,N24,N25,N26,N27,N28) -> 11.125 | P29: =AVERAGE(P5,P6,P7,P8,P9,P10,P11,P12,P13,P14,P15,P16,P17,P18,P19,P20,P21,P22,P23,P24,P25,P26,P27,P28) -> 11 | R29: =AVERAGE(R5,R6,R7,R8,R9,R10,R11,R12,R13,R14,R15,R16,R17,R18,R19,R20,R21,R22,R23,R24,R25,R26,R27,R28) -> 11.5 | T29: =AVERAGE(T5,T6,T7,T8,T9,T10,T11,T12,T13,T14,T15,T16,T17,T18,T19,T20,T21,T22,T23,T24,T25,T26,T27,T28) -> 10.75 | V29: Moyenne de Classe | W29: =AVERAGE(W5:X28) -> 1.872916667
